Workbook

Sheet FT-R Transfers (Freq & Vol)
A1: FT-R Transfer Summary - Frequency
A2: Total | G2: Peace River (PR) | L2: Mainline (ML) | Q2: North & East (NE)
A3: Month | B3: Approved (Manual) | C3: Approved (ATP) | D3: Denied | E3: Cancelled | F3: Total | G3: Approved (Manual) | H3: Approved (ATP) | I3: Denied | J3: Cancelled | K3: Total | L3: Approved (Manual) | M3: Approved (ATP) | N3: Denied | O3: Cancelled | P3: Total | Q3: Approved (Manual) | R3: Approved (ATP) | S3: Denied | T3: Cancelled | U3: Total
A4: 2024-04-22 | B4: =SUM(G4,L4,Q4) -> 730 | C4: =SUM(H4,M4,R4) -> 1173 | D4: =SUM(I4,N4,S4) -> 56 | E4: =SUM(J4,O4,T4) -> 40 | F4: =SUM(B4:E4) -> 1999 | G4: 584 | H4: 901 | I4: 51 | J4: =26+12 -> 38 | K4: =SUM(G4:J4) -> 1574 | L4: 105 | M4: 207 | N4: 0 | O4: 0 | P4: =SUM(L4:O4) -> 312 | Q4: 41 | R4: 65 | S4: 5 | T4: 2 | U4: =SUM(Q4:T4) -> 113
A5: 2024-05-22 | B5: =SUM(G5,L5,Q5) -> 778 | C5: 1089 | D5: 95 | E5: 48 | F5: 2010 | G5: 570 | H5: 886 | I5: 95 | J5: =25+16 -> 41 | K5: 1592 | L5: 134 | M5: 154 | N5: 0 | O5: 6 | P5: 294 | Q5: 74 | R5: 49 | S5: 0 | T5: 1 | U5: 124
A6: 2024-06-22 | B6: =SUM(G6,L6,Q6) -> 613 | C6: 1156 | D6: 43 | E6: 62 | F6: 1874 | G6: 493 | H6: 914 | I6: 37 | J6: =30 -> 30 | K6: 1474 | L6: 80 | M6: 187 | N6: 0 | O6: 27 | P6: 294 | Q6: 40 | R6: 55 | S6: 6 | T6: 5 | U6: 106
A7: 2024-07-22 | B7: =SUM(G7,L7,Q7) -> 593 | C7: 1172 | D7: 117 | E7: 30 | F7: 1912 | G7: 463 | H7: 937 | I7: 114 | J7: =25 -> 25 | K7: 1539 | L7: 78 | M7: 191 | N7: 1 | O7: 4 | P7: 274 | Q7: 52 | R7: 44 | S7: 2 | T7: 1 | U7: 99
A8: 2024-08-22 | B8: =ROUND(SUM(G8,L8,Q8),0) -> 510 | C8: =ROUND(SUM(H8,M8,R8),0) -> 1100 | D8: =ROUND(SUM(I8,N8,S8),0) -> 47 | E8: =ROUND(SUM(J8,O8,T8),0) -> 26 | F8: =ROUND(SUM(K8,P8,U8),0) -> 1683 | G8: 351 | H8: 829 | I8: 35 | J8: =22 -> 22 | K8: 1237 | L8: 133 | M8: 211 | N8: 3 | O8: 2 | P8: 349 | Q8: 26 | R8: 60 | S8: 9 | T8: 2 | U8: 97
A9: 2024-09-22 | B9: 746 | C9: 946 | D9: 64 | E9: 45 | F9: 1801 | G9: 485 | H9: 720 | I9: 63 | J9: =19+7 -> 26 | K9: 1294 | L9: 217 | M9: 180 | N9: 0 | O9: 6 | P9: 403 | Q9: 44 | R9: 46 | S9: 1 | T9: 13 | U9: 104
A10: 2024-10-22 | B10: 654 | C10: 1163 | D10: 55 | E10: 52 | F10: 1924 | G10: 467 | H10: 907 | I10: 54 | J10: =49 -> 49 | K10: 1477 | L10: 148 | M10: 183 | N10: 0 | O10: 3 | P10: 334 | Q10: 39 | R10: 73 | S10: 1 | T10: 0 | U10: 113
A11: 2024-11-22 | B11: 797 | C11: 1120 | D11: 50 | E11: 43 | F11: 2010 | G11: 513 | H11: 848 | I11: 50 | J11: =34 -> 34 | K11: 1445 | L11: 206 | M11: 203 | N11: 0 | O11: 9 | P11: 418 | Q11: 78 | R11: 69 | S11: 0 | T11: 0 | U11: 147
A12: 2024-12-22 | B12: 560 | C12: 1171 | D12: 51 | E12: 4 | F12: 1786 | G12: 327 | H12: 855 | I12: 46 | J12: =4 -> 4 | K12: 1232 | L12: 200 | M12: 237 | N12: 5 | O12: 0 | P12: 442 | Q12: 33 | R12: 79 | S12: 0 | T12: 0 | U12: 112
A13: 2025-01-22 | B13: 811 | C13: 1383 | D13: 106 | E13: 70 | F13: 2370 | G13: 505 | H13: 1069 | I13: 102 | J13: 56 | K13: 1732 | L13: 259 | M13: 227 | N13: 0 | O13: 7 | P13: 493 | Q13: 47 | R13: 87 | S13: 4 | T13: 7 | U13: 145
A14: 2025-02-22 | B14: 775 | C14: 1209 | D14: 113 | E14: 48 | F14: 2145 | G14: 536 | H14: 998 | I14: 91 | J14: 33 | K14: 1658 | L14: 192 | M14: 172 | N14: 22 | O14: 10 | P14: 396 | Q14: 47 | R14: 39 | S14: 0 | T14: 5 | U14: 91
A15: 2025-03-22 | B15: 765 | C15: 1452 | D15: 175 | E15: 32 | F15: 2424 | G15: 513 | H15: 1266 | I15: 170 | J15: 32 | K15: 1981 | L15: 192 | M15: 150 | N15: 3 | O15: 0 | P15: 345 | Q15: 60 | R15: 36 | S15: 2 | T15: 0 | U15: 98
A16: 2025-04-22 | B16: =ROUND(SUM(G16,L16,Q16),0) -> 650 | C16: =ROUND(SUM(H16,M16,R16),0) -> 1248 | D16: 85 | E16: 50 | F16: 2033 | G16: 450 | H16: 1044 | I16: 85 | J16: 46 | K16: =SUM(G16:J16) -> 1625 | L16: 160 | M16: 157 | N16: 0 | O16: 4 | P16: =SUM(L16:O16) -> 321 | Q16: 40 | R16: 47 | S16: 0 | T16: 0 | U16: =SUM(Q16:T16) -> 87
A18: FT-R Transfer Summary - Volume (103m3/d)
A19: Total | G19: Peace River (PR) | L19: Mainline (ML) | Q19: North & East (NE)
A20: Month | B20: Approved (Manual) | C20: Approved (ATP) | D20: Denied | E20: Cancelled | F20: Total | G20: Approved (Manual) | H20: Approved (ATP) | I20: Denied | J20: Cancelled | K20: Total | L20: Approved (Manual) | M20: Approved (ATP) | N20: Denied | O20: Cancelled | P20: Total | Q20: Approved (Manual) | R20: Approved (ATP) | S20: Denied | T20: Cancelled | U20: Total
A21: 2024-04-22 | B21: =SUM(ROUND(G21,0),ROUND(L21,0),ROUND(Q21,0)) -> 103539 | C21: =SUM(ROUND(H21,0),ROUND(M21,0),ROUND(R21,0)) -> 120828 | D21: =SUM(ROUND(I21,0),ROUND(N21,0),ROUND(S21,0)) -> 7761 | E21: =SUM(ROUND(J21,0),ROUND(O21,0),ROUND(T21,0)) -> 11845 | F21: =SUM(B21:E21) -> 243973 | G21: 102492.2 | H21: 116292.7 | I21: 7688.4 | J21: =6977.1+4801.8 -> 11778.9 | K21: =SUM(G21:J21) -> 238252.2 | L21: 738.2 | M21: 3800 | N21: 0 | O21: 0 | P21: =SUM(L21:O21) -> 4538.2 | Q21: 309 | R21: 735 | S21: 73 | T21: 66 | U21: =SUM(Q21:T21) -> 1183
A22: 2024-05-22 | B22: 126434 | C22: 123118 | D22: 8621 | E22: 21156 | F22: 279329 | G22: 124817 | H22: 119440 | I22: 8621.3 | J22: =9457+11592 -> 21049 | K22: 273927.3 | L22: 1092 | M22: 3000 | N22: 0 | O22: 97 | P22: 4189 | Q22: 525 | R22: 677.8 | S22: 0 | T22: 10 | U22: =SUM(Q22:T22) -> 1212.8
A23: 2024-06-22 | B23: 89562 | C23: 108112 | D23: 5931 | E23: 5837 | F23: 209442 | G23: 88364.4 | H23: 103584.3 | I23: 5830.4 | J23: =1529+4225 -> 5754 | K23: 203533.1 | L23: 891.7 | M23: 3790.2 | N23: 0 | O23: 59.5 | P23: 4741.4 | Q23: 306.1 | R23: 737.6 | S23: 100.7 | T23: 23 | U23: 1167.4
A24: 2024-07-22 | B24: 131861 | C24: 149743 | D24: 12784 | E24: 4787 | F24: 299175 | G24: 130005.9 | H24: 146056.2 | I24: 12727 | J24: =3831.5+931.7 -> 4763.2 | K24: 293552.3 | L24: 1354.5 | M24: 3032.8 | N24: 30 | O24: 11.5 | P24: 4428.8 | Q24: 500.4 | R24: 653.9 | S24: 26.5 | T24: 12 | U24: =SUM(Q24:T24) -> 1192.8
A25: 2024-08-22 | B25: 66797 | C25: 114231 | D25: 6137 | E25: 1902 | F25: 189067 | G25: 65072.9 | H25: 110450.3 | I25: 5577.9 | J25: =1606.8+196.5 -> 1803.3 | K25: 182904.4 | L25: 1529.8 | M25: 3398 | N25: 176 | O25: =49+30 -> 79 | P25: 5182.8 | Q25: 194.3 | R25: 383.4 | S25: 383.4 | T25: 20 | U25: 981.1
A26: 2024-09-22 | B26: 93240 | C26: 128361 | D26: 13332 | E26: 7851 | F26: 242784 | G26: 89707.2 | H26: 123672.7 | I26: 13332.2 | J26: =5409.3+1929.8 -> 7339.1 | K26: 234051.2 | L26: 2981.7 | M26: 3865.3 | N26: 0 | O26: =389.7 -> 389.7 | P26: =SUM(L26:O26) -> 7236.7 | Q26: 550.8 | R26: 823.2 | S26: 0.3 | T26: 122 | U26: 1496.3
A27: 2024-10-22 | B27: 104989 | C27: 140453 | D27: 7392 | E27: 13365 | F27: 266199 | G27: 102389 | H27: 136571 | I27: 7390 | J27: =11535.4+1368.2 -> 12903.6 | K27: 259253.6 | L27: 2201 | M27: 2929 | N27: 0 | O27: =415+46 -> 461 | P27: =SUM(L27:O27) -> 5591 | Q27: 399 | R27: 953 | S27: 2 | T27: 0 | U27: =SUM(Q27:T27) -> 1354
A28: 2024-11-22 | B28: 71043 | C28: 132505 | D28: 6457 | E28: 7829 | F28: 217834 | G28: 67529 | H28: 129115 | I28: 6457 | J28: =4984+2672 -> 7656 | K28: 210757 | L28: 2681 | M28: 2985 | N28: 0 | O28: =173 -> 173 | P28: =SUM(L28:O28) -> 5839 | Q28: 833 | R28: 405 | S28: 0 | T28: 0 | U28: 1238
A29: 2024-12-22 | B29: 51855 | C29: 128738 | D29: 6023 | E29: 688 | F29: 187304 | G29: 49947 | H29: 124540 | I29: 5957 | J29: 688 | K29: 181132 | L29: 1599 | M29: 3594 | N29: 66 | O29: 0 | P29: 5259 | Q29: 309 | R29: 604 | S29: 0 | T29: 0 | U29: 913
A30: 2025-01-22 | B30: 102438 | C30: 148036 | D30: 19760 | E30: 17963 | F30: 288197 | G30: 99269 | H30: 143367 | I30: 19734 | J30: =16261+1652 -> 17913 | K30: 280283 | L30: 2596 | M30: 3455 | N30: 0 | O30: 10 | P30: 6061 | Q30: 573 | R30: 1214 | S30: 26 | T30: 40 | U30: 1853
A31: 2025-02-22 | B31: 119572 | C31: 172460 | D31: 14989 | E31: 13881 | F31: 320902 | G31: 112432 | H31: 167169 | I31: 14317 | J31: =10509+3212 -> 13721 | K31: 307639 | L31: 6659 | M31: 4613 | N31: 672 | O31: 103 | P31: 12047 | Q31: 481 | R31: 678 | S31: 0 | T31: 57 | U31: 1216
A32: 2025-03-22 | B32: 69698 | C32: 244083 | D32: 2743 | E32: 12245 | F32: 328769 | G32: 68058 | H32: 239714 | I32: 2711 | J32: =12029+216 -> 12245 | K32: 322728 | L32: 1282 | M32: 3849 | N32: 27 | O32: 0 | P32: =SUM(L32:O32) -> 5158 | Q32: 358 | R32: 520 | S32: 5 | T32: 0 | U32: =SUM(Q32:T32) -> 883
A33: 2025-04-22 | B33: =SUM(ROUND(G33,0),ROUND(L33,0),ROUND(Q33,0)) -> 98756 | C33: 157133 | D33: 9858 | E33: =SUM(ROUND(J33,0),ROUND(O33,0),ROUND(T33,0)) -> 8242 | F33: =SUM(B33:E33) -> 273989 | G33: 96328 | H33: 153212 | I33: 9831 | J33: =7515+641 -> 8156 | K33: =SUM(G33:J33) -> 267527 | L33: 2132 | M33: 3396 | N33: 27 | O33: 86 | P33: =SUM(L33:O33) -> 5641 | Q33: 296 | R33: 525 | S33: 0 | T33: 0 | U33: =SUM(Q33:T33) -> 821
A37: Cross Boundary Transfers
A38: Month | B38: Frequency | C38: Volume (e3m3/d) | D38: Information
A39: 2024-01-01 | B39: 1 | C39: 50 | D39: Requested out and back FT-R transfer volume from PR to ML was cancelled
A40: 2024-02-01 | B40: 1 | C40: 50 | D40: Requested out and back FT-R transfer volume from PR to ML was cancelled
A41: 2024-03-01 | B41: 1 | C41: 50 | D41: Requested out and back FT-R transfer volume from PR to ML was cancelled
A42: 2024-04-01 | B42: N/A | C42: N/A | D42: N/A
A43: 2024-05-01 | B43: N/A | C43: N/A | D43: N/A
A44: 2024-06-01 | B44: 1 | C44: 2 | D44: Requested out and back FT-R transfer volume from PR to ML was cancelled
B45: 1 | C45: 10 | D45: Requested out and back FT-R transfer volume from PR to NE was cancelled
A46: 2024-07-01 | B46: 1 | C46: 0.5 | D46: Requested one-way FT-R transfer volume from NE to ML was approved
B47: 1 | C47: 0.5 | D47: Requested one-way FT-R transfer volume from NE to ML was cancelled
A48: 2024-08-01 | B48: N/A | C48: N/A | D48: N/A
A49: 2024-09-01 | B49: 1 | C49: 0.1 | D49: Requested one-way FT-R transfer volume from ML to NE was approved
A50: 2024-10-01 | B50: 1 | C50: 390 | D50: Requested out and back FT-R transfer volume from PR to ML was cancelled
B51: 1 | C51: 11 | D51: Requested one-way FT-R transfer volume from PR to NE was approved
A52: 2024-11-01 | B52: N/A | C52: N/A | D52: N/A
A53: 2024-12-01 | B53: N/A | C53: N/A | D53: N/A
A54: 2025-01-01 | B54: N/A | C54: N/A | D54: N/A
A55: 2024-02-01 | B55: N/A | C55: N/A | D55: N/A
A56: 2024-03-01 | B56: N/A | C56: N/A | D56: N/A
A57: 2025-04-01 | B57: N/A | C57: N/A | D57: N/A
A59: Notes:
A60: 1. Values represent the number of transfer requests processed in the specified month, regardless of effective date
A61: 2. Includes all "out and back" and "one-way" transfers
A62: 3. Out and back transfer requests are tallied as a single transaction
A63: 4. Transfers to storage are not included in totals
A64: 5. Transfers that cross a Delivery Design Area boundary are tallied in the area where the "To" location is situated
A65: 6. Cancelled transfer requests are initiated by the requester (customer, marketer etc.)
A66: 7. ATP is the acronym for Automated Transfer Process, requests that meet certain criteria may be approved automatically
A67: 8. Delivery Design Area boundaries are illustrated in the Design Methodology document on Customer Express (see NGTL/Regulatory/Facilities)
A68: http://www.tccustomerexpress.com/docs/ab_regulatory_facilities/Facilities%20Design%20Methodology%20Document%20-%20Revision%20May%2031,%202018_Oct%204.pdf
U72: 1

Sheet FT-D Transfers (Frequency)
A2: FT-D Transfer Summary - Frequency
A3: Total | F3: NW Alberta and NE BC | J3: NE Alberta | N3: Edmonton and Area | R3: SW Alberta | V3: SE Alberta
A4: Month | B4: Approved | C4: Denied | D4: Cancelled | E4: Total | F4: Approved | G4: Denied | H4: Cancelled | I4: Total | J4: Approved | K4: Denied | L4: Cancelled | M4: Total | N4: Approved | O4: Denied | P4: Cancelled | Q4: Total | R4: Approved | S4: Denied | T4: Cancelled | U4: Total | V4: Approved | W4: Denied | X4: Cancelled | Y4: Total
A5: 2024-04-22 | B5: =SUM(F5,J5,N5,R5,V5) -> 97 | C5: =SUM(G5,K5,O5,S5,W5) -> 0 | D5: =SUM(H5,L5,P5,T5,X5) -> 0 | E5: =SUM(B5:D5) -> 97 | F5: =SUM(F22,F39,F56,F79) -> 2 | G5: =SUM(G22,G79) -> 0 | H5: =SUM(H22,H39,H56,H79) -> 0 | I5: 2 | J5: 3 | K5: 0 | L5: 0 | M5: =SUM(J5:L5) -> 3 | N5: =SUM(N22,N39,N56,N79) -> 2 | O5: 0 | P5: 0 | Q5: =SUM(N5:P5) -> 2 | R5: =SUM(R22,R39,R56,R79) -> 0 | S5: 0 | T5: 0 | U5: =SUM(R5:T5) -> 0 | V5: =SUM(V22,V39,V56,B96,C96,I96,J96) -> 90 | W5: =SUM(W22,W39,W56,W79,D96,K96) -> 0 | X5: =SUM(X22,X39,X56,X79,E96,L96) -> 0 | Y5: =SUM(V5:X5) -> 90
A6: 2024-05-22 | B6: 125 | C6: 0 | D6: 1 | E6: 126 | F6: 1 | G6: 0 | H6: =SUM(H23,H40,H57,H80) -> 0 | I6: 1 | J6: 2 | K6: 0 | L6: 1 | M6: 3 | N6: =SUM(N23,N40,N57,N80) -> 1 | O6: 0 | P6: 0 | Q6: 1 | R6: =SUM(R23,R40,R57,R80) -> 0 | S6: 0 | T6: 0 | U6: 0 | V6: 121 | W6: 0 | X6: 0 | Y6: 121
A7: 2024-06-22 | B7: 93 | C7: 0 | D7: 2 | E7: 95 | F7: 0 | G7: 0 | H7: =SUM(H24,H41,H58,H81) -> 0 | I7: 0 | J7: 2 | K7: 0 | L7: 0 | M7: 2 | N7: =SUM(N24,N41,N58,N81) -> 1 | O7: 0 | P7: 0 | Q7: 1 | R7: =SUM(R24,R41,R58,R81) -> 1 | S7: 0 | T7: 0 | U7: 1 | V7: 89 | W7: 0 | X7: 2 | Y7: 91
A8: 2024-07-22 | B8: 99 | C8: 1 | D8: 5 | E8: 105 | F8: 0 | G8: 0 | H8: =SUM(H25,H42,H59,H82) -> 0 | I8: 0 | J8: 2 | K8: 1 | L8: 0 | M8: 3 | N8: =SUM(N25,N42,N59,N82) -> 1 | O8: 0 | P8: 0 | Q8: 1 | R8: =SUM(R25,R42,R59,R82) -> 1 | S8: 0 | T8: 0 | U8: 1 | V8: 95 | W8: 0 | X8: 5 | Y8: 100
A9: 2024-08-22 | B9: 71 | C9: 0 | D9: 0 | E9: 71 | F9: 0 | G9: 0 | H9: =SUM(H26,H43,H60,H83) -> 0 | I9: 0 | J9: 2 | K9: 0 | L9: 0 | M9: 2 | N9: =SUM(N26,N43,N60,N83) -> 2 | O9: 0 | P9: 0 | Q9: 2 | R9: =SUM(R26,R43,R60,R83) -> 0 | S9: 0 | T9: 0 | U9: 0 | V9: 67 | W9: 0 | X9: 0 | Y9: 67
A10: 2024-09-22 | B10: 62 | C10: 0 | D10: 0 | E10: 62 | F10: 1 | G10: 0 | H10: =SUM(H27,H44,H61,H84) -> 0 | I10: 1 | J10: 1 | K10: 0 | L10: 0 | M10: 1 | N10: =SUM(N27,N44,N61,N84) -> 1 | O10: 0 | P10: 0 | Q10: 1 | R10: =SUM(R27,R44,R61,R84) -> 0 | S10: 0 | T10: 0 | U10: 0 | V10: 59 | W10: 0 | X10: 0 | Y10: 59
A11: 2024-10-22 | B11: 86 | C11: 1 | D11: 0 | E11: 87 | F11: 0 | G11: 0 | H11: =SUM(H28,H45,H62,H85) -> 0 | I11: 0 | J11: 3 | K11: 0 | L11: 0 | M11: 3 | N11: =SUM(N28,N45,N62,N85) -> 1 | O11: 1 | P11: 0 | Q11: 2 | R11: =SUM(R28,R45,R62,R85) -> 0 | S11: 0 | T11: 0 | U11: 0 | V11: 82 | W11: 0 | X11: 0 | Y11: 82
A12: 2024-11-22 | B12: 76 | C12: 3 | D12: 0 | E12: 79 | F12: 0 | G12: 0 | H12: =SUM(H29,H46,H63,H86) -> 0 | I12: 0 | J12: 2 | K12: 2 | L12: 0 | M12: 4 | N12: =SUM(N29,N46,N63,N86) -> 1 | O12: 0 | P12: 0 | Q12: 1 | R12: =SUM(R29,R46,R63,R86) -> 1 | S12: 0 | T12: 0 | U12: 1 | V12: 72 | W12: 1 | X12: 0 | Y12: 73
A13: 2024-12-22 | B13: 77 | C13: 0 | D13: 1 | E13: 78 | F13: 0 | G13: 0 | H13: =SUM(H30,H47,H64,H87) -> 0 | I13: 0 | J13: 2 | K13: 0 | L13: 0 | M13: 2 | N13: =SUM(N30,N47,N64,N87) -> 2 | O13: 0 | P13: 0 | Q13: 2 | R13: =SUM(R30,R47,R64,R87) -> 8 | S13: 0 | T13: 0 | U13: 8 | V13: 65 | W13: 0 | X13: 1 | Y13: 66
A14: 2025-01-22 | B14: 99 | C14: 3 | D14: 4 | E14: 106 | F14: 0 | G14: 0 | H14: =SUM(H31,H48,H65,H88) -> 0 | I14: 0 | J14: 2 | K14: 0 | L14: 0 | M14: 2 | N14: =SUM(N31,N48,N65,N88) -> 3 | O14: 0 | P14: 0 | Q14: 3 | R14: =SUM(R31,R48,R65,R88) -> 8 | S14: 1 | T14: 2 | U14: 11 | V14: 86 | W14: 2 | X14: 2 | Y14: 90
A15: 2025-02-22 | B15: 89 | C15: 1 | D15: 1 | E15: 91 | F15: 0 | G15: 0 | H15: =SUM(H32,H49,H66,H89) -> 0 | I15: 0 | J15: 2 | K15: 0 | L15: 1 | M15: 3 | N15: =SUM(N32,N49,N66,N89) -> 4 | O15: 0 | P15: 0 | Q15: 4 | R15: =SUM(R32,R49,R66,R89) -> 5 | S15: 1 | T15: 0 | U15: 6 | V15: =SUM(V32,V49,V66,B106,C106,I106,J106,V89) -> 78 | W15: 0 | X15: 0 | Y15: 78
A16: 2025-03-22 | B16: 84 | C16: 0 | D16: 0 | E16: 84 | F16: 0 | G16: 0 | H16: =SUM(H33,H50,H67,H90) -> 0 | I16: 0 | J16: 2 | K16: 0 | L16: 0 | M16: 2 | N16: =SUM(N33,N50,N67,N90) -> 1 | O16: 0 | P16: 0 | Q16: 1 | R16: =SUM(R33,R50,R67,R90) -> 5 | S16: 0 | T16: 0 | U16: 5 | V16: =SUM(V33,V50,V67,B107,C107,I107,J107,V90) -> 76 | W16: 0 | X16: 0 | Y16: 76
A17: 2025-04-22 | B17: =SUM(F17,J17,N17,R17,V17) -> 71 | C17: =SUM(G17,K17,O17,S17,W17) -> 0 | D17: =SUM(H17,L17,P17,T17,X17) -> 0 | E17: =SUM(B17:D17) -> 71 | F17: 0 | G17: 0 | H17: =SUM(H34,H51,H68,H91) -> 0 | I17: 0 | J17: 3 | K17: 0 | L17: 0 | M17: =SUM(J17:L17) -> 3 | N17: =SUM(N34,N51,N68,N91) -> 1 | O17: 0 | P17: 0 | Q17: =SUM(N17:P17) -> 1 | R17: =SUM(R34,R51,R68,R91) -> 4 | S17: 0 | T17: 0 | U17: =SUM(R17:T17) -> 4 | V17: =SUM(V34,V51,V68,B108,C108,I108,J108,V91) -> 63 | W17: =SUM(W34,W51,W68,W91,D108,K108) -> 0 | X17: 0 | Y17: =SUM(V17:X17) -> 63
A19: FT-D2 to FT-D2 Transfer Summary
A20: Total | F20: NW Alberta and NE BC | J20: NE Alberta | N20: Edmonton and Area | R20: SW Alberta | V20: SE Alberta
A21: Month | B21: Approved | C21: Denied | D21: Cancelled | E21: Total | F21: Approved | G21: Denied | H21: Cancelled | I21: Total | J21: Approved | K21: Denied | L21: Cancelled | M21: Total | N21: Approved | O21: Denied | P21: Cancelled | Q21: Total | R21: Approved | S21: Denied | T21: Cancelled | U21: Total | V21: Approved | W21: Denied | X21: Cancelled | Y21: Total
A22: 2024-04-22 | B22: =SUM(F22,J22,N22,R22,V22) -> 12 | C22: =SUM(G22,K22,O22,S22,W22) -> 0 | D22: =SUM(H22,L22,P22,T22,X22) -> 0 | E22: =SUM(B22:D22) -> 12 | F22: 2 | G22: 0 | H22: 0 | I22: =SUM(F22:H22) -> 2 | J22: 2 | K22: 0 | L22: 0 | M22: =SUM(J22:L22) -> 2 | N22: 2 | O22: 0 | P22: 0 | Q22: =SUM(N22:P22) -> 2 | R22: 0 | S22: 0 | T22: 0 | U22: =SUM(R22:T22) -> 0 | V22: 6 | W22: 0 | X22: 0 | Y22: =SUM(V22:X22) -> 6
A23: 2024-05-22 | B23: 8 | C23: 0 | D23: 1 | E23: 9 | F23: 1 | G23: 0 | H23: 0 | I23: 1 | J23: 2 | K23: 0 | L23: 1 | M23: 3 | N23: 1 | O23: 0 | P23: 0 | Q23: 1 | R23: 0 | S23: 0 | T23: 0 | U23: 0 | V23: 4 | W23: 0 | X23: 0 | Y23: 4
A24: 2024-06-22 | B24: 10 | C24: 0 | D24: 0 | E24: 10 | F24: 0 | G24: 0 | H24: 0 | I24: 0 | J24: 2 | K24: 0 | L24: 0 | M24: 2 | N24: 1 | O24: 0 | P24: 0 | Q24: 1 | R24: 1 | S24: 0 | T24: 0 | U24: 1 | V24: 6 | W24: 0 | X24: 0 | Y24: 6
A25: 2024-07-22 | B25: 14 | C25: 1 | D25: 3 | E25: 18 | F25: 0 | G25: 0 | H25: 0 | I25: 0 | J25: 2 | K25: 1 | L25: 0 | M25: 3 | N25: 1 | O25: 0 | P25: 0 | Q25: 1 | R25: 1 | S25: 0 | T25: 0 | U25: 1 | V25: 10 | W25: 0 | X25: 3 | Y25: 13
A26: 2024-08-22 | B26: 7 | C26: 0 | D26: 0 | E26: 7 | F26: 0 | G26: 0 | H26: 0 | I26: 0 | J26: 2 | K26: 0 | L26: 0 | M26: 2 | N26: 1 | O26: 0 | P26: 0 | Q26: 1 | R26: 0 | S26: 0 | T26: 0 | U26: 0 | V26: 4 | W26: 0 | X26: 0 | Y26: 4
A27: 2024-09-22 | B27: 6 | C27: 0 | D27: 0 | E27: 6 | F27: 1 | G27: 0 | H27: 0 | I27: 1 | J27: 1 | K27: 0 | L27: 0 | M27: 1 | N27: 1 | O27: 0 | P27: 0 | Q27: 1 | R27: 0 | S27: 0 | T27: 0 | U27: 0 | V27: 3 | W27: 0 | X27: 0 | Y27: 3
A28: 2024-10-22 | B28: 9 | C28: 1 | D28: 0 | E28: 10 | F28: 0 | G28: 0 | H28: 0 | I28: 0 | J28: 3 | K28: 0 | L28: 0 | M28: 3 | N28: 1 | O28: 1 | P28: 0 | Q28: 2 | R28: 0 | S28: 0 | T28: 0 | U28: 0 | V28: 5 | W28: 0 | X28: 0 | Y28: 5
A29: 2024-11-22 | B29: 9 | C29: 3 | D29: 0 | E29: 12 | F29: 0 | G29: 0 | H29: 0 | I29: 0 | J29: 2 | K29: 2 | L29: 0 | M29: 4 | N29: 1 | O29: 0 | P29: 0 | Q29: 1 | R29: 0 | S29: 0 | T29: 0 | U29: 0 | V29: 6 | W29: 1 | X29: 0 | Y29: 7
A30: 2024-12-22 | B30: 8 | C30: 0 | D30: 0 | E30: 8 | F30: 0 | G30: 0 | H30: 0 | I30: 0 | J30: 2 | K30: 0 | L30: 0 | M30: 2 | N30: 2 | O30: 0 | P30: 0 | Q30: 2 | R30: 0 | S30: 0 | T30: 0 | U30: 0 | V30: 4 | W30: 0 | X30: 0 | Y30: 4
A31: 2025-01-22 | B31: 7 | C31: 0 | D31: 0 | E31: 7 | F31: 0 | G31: 0 | H31: 0 | I31: 0 | J31: 2 | K31: 0 | L31: 0 | M31: 2 | N31: 2 | O31: 0 | P31: 0 | Q31: 2 | R31: 0 | S31: 0 | T31: 0 | U31: 0 | V31: 3 | W31: 0 | X31: 0 | Y31: 3
A32: 2025-02-22 | B32: 11 | C32: 1 | D32: 1 | E32: 13 | F32: 0 | G32: 0 | H32: 0 | I32: 0 | J32: 2 | K32: 0 | L32: 1 | M32: 3 | N32: 4 | O32: 0 | P32: 0 | Q32: 4 | R32: 2 | S32: 1 | T32: 0 | U32: 3 | V32: 3 | W32: 0 | X32: 0 | Y32: 3
A33: 2025-03-22 | B33: 7 | C33: 0 | D33: 0 | E33: 7 | F33: 0 | G33: 0 | H33: 0 | I33: 0 | J33: 2 | K33: 0 | L33: 0 | M33: 2 | N33: 1 | O33: 0 | P33: 0 | Q33: 1 | R33: 0 | S33: 0 | T33: 0 | U33: 0 | V33: 4 | W33: 0 | X33: 0 | Y33: 4
A34: 2025-04-22 | B34: =SUM(F34,J34,N34,R34,V34) -> 5 | C34: =SUM(G34,K34,O34,S34,W34) -> 0 | D34: =SUM(H34,L34,P34,T34,X34) -> 0 | E34: =SUM(B34:D34) -> 5 | F34: 0 | G34: 0 | H34: 0 | I34: =SUM(F34:H34) -> 0 | J34: 3 | K34: 0 | L34: 0 | M34: =SUM(J34:L34) -> 3 | N34: 1 | O34: 0 | P34: 0 | Q34: =SUM(N34:P34) -> 1 | R34: 0 | S34: 0 | T34: 0 | U34: =SUM(R34:T34) -> 0 | V34: 1 | W34: 0 | X34: 0 | Y34: =SUM(V34:X34) -> 1
A36: FT-D3 to FT-D3 Transfer Summary
A37: Total | F37: NW Alberta and NE BC | J37: NE Alberta | N37: Edmonton and Area | R37: SW Alberta | V37: SE Alberta
A38: Month | B38: Approved | C38: Denied | D38: Cancelled | E38: Total | F38: Approved | G38: Denied | H38: Cancelled | I38: Total | J38: Approved | K38: Denied | L38: Cancelled | M38: Total | N38: Approved | O38: Denied | P38: Cancelled | Q38: Total | R38: Approved | S38: Denied | T38: Cancelled | U38: Total | V38: Approved | W38: Denied | X38: Cancelled | Y38: Total
A39: 2024-04-22 | B39: =SUM(F39,J39,N39,R39,V39) -> 1 | C39: =SUM(G39,K39,O39,S39,W39) -> 0 | D39: =SUM(H39,L39,P39,T39,X39) -> 0 | E39: =SUM(B39:D39) -> 1 | F39: 0 | G39: 0 | H39: 0 | I39: =SUM(F39:H39) -> 0 | J39: 1 | K39: 0 | L39: 0 | M39: =SUM(J39:L39) -> 1 | N39: 0 | O39: 0 | P39: 0 | Q39: =SUM(N39:P39) -> 0 | R39: 0 | S39: 0 | T39: 0 | U39: =SUM(R39:T39) -> 0 | V39: 0 | W39: 0 | X39: 0 | Y39: =SUM(V39:X39) -> 0
A40: 2024-05-22 | B40: 0 | C40: =SUM(G40,K40,O40,S40,W40) -> 0 | D40: 0 | E40: 0 | F40: 0 | G40: 0 | H40: 0 | I40: 0 | J40: 0 | K40: 0 | L40: 0 | M40: 0 | N40: 0 | O40: 0 | P40: 0 | Q40: 0 | R40: 0 | S40: 0 | T40: 0 | U40: 0 | V40: 0 | W40: 0 | X40: 0 | Y40: 0
A41: 2024-06-22 | B41: 0 | C41: 0 | D41: 0 | E41: 0 | F41: 0 | G41: 0 | H41: 0 | I41: 0 | J41: 0 | K41: 0 | L41: 0 | M41: 0 | N41: 0 | O41: 0 | P41: 0 | Q41: 0 | R41: 0 | S41: 0 | T41: 0 | U41: 0 | V41: 0 | W41: 0 | X41: 0 | Y41: 0
A42: 2024-07-22 | B42: 0 | C42: 0 | D42: 0 | E42: 0 | F42: 0 | G42: 0 | H42: 0 | I42: 0 | J42: 0 | K42: 0 | L42: 0 | M42: 0 | N42: 0 | O42: 0 | P42: 0 | Q42: 0 | R42: 0 | S42: 0 | T42: 0 | U42: 0 | V42: 0 | W42: 0 | X42: 0 | Y42: 0
A43: 2024-08-22 | B43: 1 | C43: 0 | D43: 0 | E43: 1 | F43: 0 | G43: 0 | H43: 0 | I43: 0 | J43: 0 | K43: 0 | L43: 0 | M43: 0 | N43: 1 | O43: 0 | P43: 0 | Q43: 1 | R43: 0 | S43: 0 | T43: 0 | U43: 0 | V43: 0 | W43: 0 | X43: 0 | Y43: 0
A44: 2024-09-22 | B44: 0 | C44: 0 | D44: 0 | E44: 0 | F44: 0 | G44: 0 | H44: 0 | I44: 0 | J44: 0 | K44: 0 | L44: 0 | M44: 0 | N44: 0 | O44: 0 | P44: 0 | Q44: 0 | R44: 0 | S44: 0 | T44: 0 | U44: 0 | V44: 0 | W44: 0 | X44: 0 | Y44: 0
A45: 2024-10-22 | B45: 0 | C45: 0 | D45: 0 | E45: 0 | F45: 0 | G45: 0 | H45: 0 | I45: 0 | J45: 0 | K45: 0 | L45: 0 | M45: 0 | N45: 0 | O45: 0 | P45: 0 | Q45: 0 | R45: 0 | S45: 0 | T45: 0 | U45: 0 | V45: 0 | W45: 0 | X45: 0 | Y45: 0
A46: 2024-11-22 | B46: 0 | C46: 0 | D46: 0 | E46: 0 | F46: 0 | G46: 0 | H46: 0 | I46: 0 | J46: 0 | K46: 0 | L46: 0 | M46: 0 | N46: 0 | O46: 0 | P46: 0 | Q46: 0 | R46: 0 | S46: 0 | T46: 0 | U46: 0 | V46: 0 | W46: 0 | X46: 0 | Y46: 0
A47: 2024-12-22 | B47: 0 | C47: 0 | D47: 0 | E47: 0 | F47: 0 | G47: 0 | H47: 0 | I47: 0 | J47: 0 | K47: 0 | L47: 0 | M47: 0 | N47: 0 | O47: 0 | P47: 0 | Q47: 0 | R47: 0 | S47: 0 | T47: 0 | U47: 0 | V47: 0 | W47: 0 | X47: 0 | Y47: 0
A48: 2025-01-22 | B48: 1 | C48: 0 | D48: 0 | E48: 1 | F48: 0 | G48: 0 | H48: 0 | I48: 0 | J48: 0 | K48: 0 | L48: 0 | M48: 0 | N48: 1 | O48: 0 | P48: 0 | Q48: 1 | R48: 0 | S48: 0 | T48: 0 | U48: 0 | V48: 0 | W48: 0 | X48: 0 | Y48: 0
A49: 2025-02-22 | B49: 0 | C49: 0 | D49: 0 | E49: 0 | F49: 0 | G49: 0 | H49: 0 | I49: 0 | J49: 0 | K49: 0 | L49: 0 | M49: 0 | N49: 0 | O49: 0 | P49: 0 | Q49: 0 | R49: 0 | S49: 0 | T49: 0 | U49: 0 | V49: 0 | W49: 0 | X49: 0 | Y49: 0
A50: 2025-03-22 | B50: 0 | C50: 0 | D50: 0 | E50: 0 | F50: 0 | G50: 0 | H50: 0 | I50: 0 | J50: 0 | K50: 0 | L50: 0 | M50: 0 | N50: 0 | O50: 0 | P50: 0 | Q50: 0 | R50: 0 | S50: 0 | T50: 0 | U50: 0 | V50: 0 | W50: 0 | X50: 0 | Y50: 0
A51: 2025-04-22 | B51: =SUM(F51,J51,N51,R51,V51) -> 0 | C51: =SUM(G51,K51,O51,S51,W51) -> 0 | D51: =SUM(H51,L51,P51,T51,X51) -> 0 | E51: =SUM(B51:D51) -> 0 | F51: 0 | G51: 0 | H51: 0 | I51: =SUM(F51:H51) -> 0 | J51: 0 | K51: 0 | L51: 0 | M51: =SUM(J51:L51) -> 0 | N51: 0 | O51: 0 | P51: 0 | Q51: =SUM(N51:P51) -> 0 | R51: 0 | S51: 0 | T51: 0 | U51: =SUM(R51:T51) -> 0 | V51: 0 | W51: 0 | X51: 0 | Y51: =SUM(V51:X51) -> 0
A53: FT-D1 to FT-D2 Transfer Summary
A54: Total | F54: NW Alberta and NE BC | J54: NE Alberta | N54: Edmonton and Area | R54: SW Alberta | V54: SE Alberta
A55: Month | B55: Approved | C55: Denied | D55: Cancelled | E55: Total | F55: Approved | G55: Denied | H55: Cancelled | I55: Total | J55: Approved | K55: Denied | L55: Cancelled | M55: Total | N55: Approved | O55: Denied | P55: Cancelled | Q55: Total | R55: Approved | S55: Denied | T55: Cancelled | U55: Total | V55: Approved | W55: Denied | X55: Cancelled | Y55: Total
A56: 2024-04-22 | B56: =SUM(F56,J56,N56,R56,V56) -> 0 | C56: =SUM(G56,K56,O56,S56,W56) -> 0 | D56: =SUM(H56,L56,P56,T56,X56) -> 0 | E56: =SUM(B56:D56) -> 0 | F56: 0 | G56: 0 | H56: 0 | I56: 0 | J56: 0 | K56: 0 | L56: 0 | M56: 0 | N56: 0 | O56: 0 | P56: 0 | Q56: 0 | R56: 0 | S56: 0 | T56: 0 | U56: 0 | V56: 0 | W56: 0 | X56: 0 | Y56: 0
A57: 2024-05-22 | B57: 0 | C57: 0 | D57: 0 | E57: 0 | F57: 0 | G57: 0 | H57: 0 | I57: 0 | J57: 0 | K57: 0 | L57: 0 | M57: 0 | N57: 0 | O57: 0 | P57: 0 | Q57: 0 | R57: 0 | S57: 0 | T57: 0 | U57: 0 | V57: 0 | W57: 0 | X57: 0 | Y57: 0
A58: 2024-06-22 | B58: 0 | C58: 0 | D58: 0 | E58: 0 | F58: 0 | G58: 0 | H58: 0 | I58: 0 | J58: 0 | K58: 0 | L58: 0 | M58: 0 | N58: 0 | O58: 0 | P58: 0 | Q58: 0 | R58: 0 | S58: 0 | T58: 0 | U58: 0 | V58: 0 | W58: 0 | X58: 0 | Y58: 0
A59: 2024-07-22 | B59: 4 | C59: 0 | D59: 0 | E59: 4 | F59: 0 | G59: 0 | H59: 0 | I59: 0 | J59: 0 | K59: 0 | L59: 0 | M59: 0 | N59: 0 | O59: 0 | P59: 0 | Q59: 0 | R59: 0 | S59: 0 | T59: 0 | U59: 0 | V59: 4 | W59: 0 | X59: 0 | Y59: =SUM(X59,W59,V59) -> 4
A60: 2024-08-22 | B60: 0 | C60: 0 | D60: 0 | E60: 0 | F60: 0 | G60: 0 | H60: 0 | I60: 0 | J60: 0 | K60: 0 | L60: 0 | M60: 0 | N60: 0 | O60: 0 | P60: 0 | Q60: 0 | R60: 0 | S60: 0 | T60: 0 | U60: 0 | V60: 0 | W60: 0 | X60: 0 | Y60: 0
A61: 2024-09-22 | B61: 0 | C61: 0 | D61: 0 | E61: 0 | F61: 0 | G61: 0 | H61: 0 | I61: 0 | J61: 0 | K61: 0 | L61: 0 | M61: 0 | N61: 0 | O61: 0 | P61: 0 | Q61: 0 | R61: 0 | S61: 0 | T61: 0 | U61: 0 | V61: 0 | W61: 0 | X61: 0 | Y61: 0
A62: 2024-10-22 | B62: 0 | C62: 0 | D62: 0 | E62: 0 | F62: 0 | G62: 0 | H62: 0 | I62: 0 | J62: 0 | K62: 0 | L62: 0 | M62: 0 | N62: 0 | O62: 0 | P62: 0 | Q62: 0 | R62: 0 | S62: 0 | T62: 0 | U62: 0 | V62: 0 | W62: 0 | X62: 0 | Y62: 0
A63: 2024-11-22 | B63: 0 | C63: 0 | D63: 0 | E63: 0 | F63: 0 | G63: 0 | H63: 0 | I63: 0 | J63: 0 | K63: 0 | L63: 0 | M63: 0 | N63: 0 | O63: 0 | P63: 0 | Q63: 0 | R63: 0 | S63: 0 | T63: 0 | U63: 0 | V63: 0 | W63: 0 | X63: 0 | Y63: 0
A64: 2024-12-22 | B64: 0 | C64: 0 | D64: 0 | E64: 0 | F64: 0 | G64: 0 | H64: 0 | I64: 0 | J64: 0 | K64: 0 | L64: 0 | M64: 0 | N64: 0 | O64: 0 | P64: 0 | Q64: 0 | R64: 0 | S64: 0 | T64: 0 | U64: 0 | V64: 0 | W64: 0 | X64: 0 | Y64: 0
A65: 2025-01-22 | B65: 0 | C65: 0 | D65: 0 | E65: 0 | F65: 0 | G65: 0 | H65: 0 | I65: 0 | J65: 0 | K65: 0 | L65: 0 | M65: 0 | N65: 0 | O65: 0 | P65: 0 | Q65: 0 | R65: 0 | S65: 0 | T65: 0 | U65: 0 | V65: 0 | W65: 0 | X65: 0 | Y65: 0
A66: 2025-02-22 | B66: 0 | C66: 0 | D66: 0 | E66: 0 | F66: 0 | G66: 0 | H66: 0 | I66: 0 | J66: 0 | K66: 0 | L66: 0 | M66: 0 | N66: 0 | O66: 0 | P66: 0 | Q66: 0 | R66: 0 | S66: 0 | T66: 0 | U66: 0 | V66: 0 | W66: 0 | X66: 0 | Y66: 0
A67: 2025-03-22 | B67: 0 | C67: 0 | D67: 0 | E67: 0 | F67: 0 | G67: 0 | H67: 0 | I67: 0 | J67: 0 | K67: 0 | L67: 0 | M67: 0 | N67: 0 | O67: 0 | P67: 0 | Q67: 0 | R67: 0 | S67: 0 | T67: 0 | U67: 0 | V67: 0 | W67: 0 | X67: 0 | Y67: 0
A68: 2025-04-22 | B68: =SUM(F68,J68,N68,R68,V68) -> 0 | C68: =SUM(G68,K68,O68,S68,W68) -> 0 | D68: =SUM(H68,L68,P68,T68,X68) -> 0 | E68: =SUM(B68:D68) -> 0 | F68: 0 | G68: 0 | H68: 0 | I68: 0 | J68: 0 | K68: 0 | L68: 0 | M68: 0 | N68: 0 | O68: 0 | P68: 0 | Q68: 0 | R68: 0 | S68: 0 | T68: 0 | U68: 0 | V68: 0 | W68: 0 | X68: 0 | Y68: =SUM(X68,W68,V68) -> 0
A76: FT-D2 to FT-D1 Transfer Summary
A77: Total | F77: NW Alberta and NE BC | J77: NE Alberta | N77: Edmonton and Area | R77: SW Alberta | V77: SE Alberta
A78: Month | B78: Approved | C78: Denied | D78: Cancelled | E78: Total | F78: Approved | G78: Denied | H78: Cancelled | I78: Total | J78: Approved | K78: Denied | L78: Cancelled | M78: Total | N78: Approved | O78: Denied | P78: Cancelled | Q78: Total | R78: Approved | S78: Denied | T78: Cancelled | U78: Total | V78: Approved | W78: Denied | X78: Cancelled | Y78: Total
A79: 2024-04-22 | B79: =SUM(F79,J79,N79,R79,V79) -> 0 | C79: =SUM(G79,K79,O79,S79,W79) -> 0 | D79: =SUM(H79,L79,P79,T79,X79) -> 0 | E79: =SUM(B79:D79) -> 0 | F79: 0 | G79: 0 | H79: 0 | I79: 0 | J79: 0 | K79: 0 | L79: 0 | M79: 0 | N79: 0 | O79: 0 | P79: 0 | Q79: 0 | R79: 0 | S79: 0 | T79: 0 | U79: =SUM(R79:T79) -> 0 | V79: 0 | W79: 0 | X79: 0 | Y79: =SUM(V79:X79) -> 0
A80: 2024-05-22 | B80: 0 | C80: 0 | D80: 0 | E80: 0 | F80: 0 | G80: 0 | H80: 0 | I80: 0 | J80: 0 | K80: 0 | L80: 0 | M80: 0 | N80: 0 | O80: 0 | P80: 0 | Q80: 0 | R80: 0 | S80: 0 | T80: 0 | U80: 0 | V80: 0 | W80: 0 | X80: 0 | Y80: 0
A81: 2024-06-22 | B81: 0 | C81: 0 | D81: 0 | E81: 0 | F81: 0 | G81: 0 | H81: 0 | I81: 0 | J81: 0 | K81: 0 | L81: 0 | M81: 0 | N81: 0 | O81: 0 | P81: 0 | Q81: 0 | R81: 0 | S81: 0 | T81: 0 | U81: 0 | V81: 0 | W81: 0 | X81: 0 | Y81: 0
A82: 2024-07-22 | B82: 0 | C82: 0 | D82: 0 | E82: 0 | F82: 0 | G82: 0 | H82: 0 | I82: 0 | J82: 0 | K82: 0 | L82: 0 | M82: 0 | N82: 0 | O82: 0 | P82: 0 | Q82: 0 | R82: 0 | S82: 0 | T82: 0 | U82: 0 | V82: 0 | W82: 0 | X82: 0 | Y82: 0
A83: 2024-08-22 | B83: 0 | C83: 0 | D83: 0 | E83: 0 | F83: 0 | G83: 0 | H83: 0 | I83: 0 | J83: 0 | K83: 0 | L83: 0 | M83: 0 | N83: 0 | O83: 0 | P83: 0 | Q83: 0 | R83: 0 | S83: 0 | T83: 0 | U83: 0 | V83: 0 | W83: 0 | X83: 0 | Y83: 0
A84: 2024-09-22 | B84: 0 | C84: 0 | D84: 0 | E84: 0 | F84: 0 | G84: 0 | H84: 0 | I84: 0 | J84: 0 | K84: 0 | L84: 0 | M84: 0 | N84: 0 | O84: 0 | P84: 0 | Q84: 0 | R84: 0 | S84: 0 | T84: 0 | U84: 0 | V84: 0 | W84: 0 | X84: 0 | Y84: 0
A85: 2024-10-22 | B85: 0 | C85: 0 | D85: 0 | E85: 0 | F85: 0 | G85: 0 | H85: 0 | I85: 0 | J85: 0 | K85: 0 | L85: 0 | M85: 0 | N85: 0 | O85: 0 | P85: 0 | Q85: 0 | R85: 0 | S85: 0 | T85: 0 | U85: 0 | V85: 0 | W85: 0 | X85: 0 | Y85: 0
A86: 2024-11-22 | B86: 5 | C86: 0 | D86: 0 | E86: 5 | F86: 0 | G86: 0 | H86: 0 | I86: 0 | J86: 0 | K86: 0 | L86: 0 | M86: 0 | N86: 0 | O86: 0 | P86: 0 | Q86: 0 | R86: 1 | S86: 0 | T86: 0 | U86: 1 | V86: 4 | W86: 0 | X86: 0 | Y86: 4
A87: 2024-12-22 | B87: 11 | C87: 0 | D87: 0 | E87: 11 | F87: 0 | G87: 0 | H87: 0 | I87: 0 | J87: 0 | K87: 0 | L87: 0 | M87: 0 | N87: 0 | O87: 0 | P87: 0 | Q87: 0 | R87: 8 | S87: 0 | T87: 0 | U87: 8 | V87: 3 | W87: 0 | X87: 0 | Y87: 3
A88: 2025-01-22 | B88: 8 | C88: 3 | D88: 2 | E88: 13 | F88: 0 | G88: 0 | H88: 0 | I88: 0 | J88: 0 | K88: 0 | L88: 0 | M88: 0 | N88: 0 | O88: 0 | P88: 0 | Q88: 0 | R88: 8 | S88: 1 | T88: 2 | U88: 11 | V88: 0 | W88: 2 | X88: 0 | Y88: 2
A89: 2025-02-22 | B89: 3 | C89: 0 | D89: 0 | E89: 3 | F89: 0 | G89: 0 | H89: 0 | I89: 0 | J89: 0 | K89: 0 | L89: 0 | M89: 0 | N89: 0 | O89: 0 | P89: 0 | Q89: 0 | R89: 3 | S89: 0 | T89: 0 | U89: 3 | V89: 0 | W89: 0 | X89: 0 | Y89: 0
A90: 2025-03-22 | B90: 5 | C90: 0 | D90: 0 | E90: 5 | F90: 0 | G90: 0 | H90: 0 | I90: 0 | J90: 0 | K90: 0 | L90: 0 | M90: 0 | N90: 0 | O90: 0 | P90: 0 | Q90: 0 | R90: 5 | S90: 0 | T90: 0 | U90: 5 | V90: 0 | W90: 0 | X90: 0 | Y90: 0
A91: 2025-04-22 | B91: =SUM(F91,J91,N91,R91,V91) -> 4 | C91: =SUM(G91,K91,O91,S91,W91) -> 0 | D91: =SUM(H91,L91,P91,T91,X91) -> 0 | E91: =SUM(B91:D91) -> 4 | F91: 0 | G91: 0 | H91: 0 | I91: 0 | J91: 0 | K91: 0 | L91: 0 | M91: 0 | N91: 0 | O91: 0 | P91: 0 | Q91: 0 | R91: 4 | S91: 0 | T91: 0 | U91: =SUM(R91:T91) -> 4 | V91: 0 | W91: 0 | X91: 0 | Y91: =SUM(V91:X91) -> 0
A93: FT-D1 to FT-D1 Transfer Summary
A94: Empress to McNeill FT-D1 | H94: McNeill to Empress FT-D1
A95: Month | B95: Approved (Manual) | C95: Approved (ATP) | D95: Denied | E95: Cancelled | F95: Total | H95: Month | I95: Approved (Manual) | J95: Approved (ATP) | K95: Denied | L95: Cancelled | M95: Total
A96: 2024-04-22 | B96: 11 | C96: 10 | D96: 0 | E96: 0 | F96: =SUM(B96:E96) -> 21 | H96: 2024-04-22 | I96: 8 | J96: 55 | K96: 0 | L96: 0 | M96: =SUM(I96:L96) -> 63
A97: 2024-05-22 | B97: 8 | C97: 40 | D97: 0 | E97: 0 | F97: 48 | H97: 2024-05-22 | I97: 8 | J97: 61 | K97: 0 | L97: 0 | M97: 69
A98: 2024-06-22 | B98: 13 | C98: 26 | D98: 0 | E98: 0 | F98: 39 | H98: 2024-06-22 | I98: 41 | J98: 3 | K98: 0 | L98: 2 | M98: 46
A99: 2024-07-22 | B99: 10 | C99: 19 | D99: 0 | E99: 0 | F99: 29 | H99: 2024-07-22 | I99: 48 | J99: 4 | K99: 0 | L99: 2 | M99: 54
A100: 2024-08-22 | B100: 4 | C100: 10 | D100: 0 | E100: 0 | F100: 14 | H100: 2024-08-22 | I100: 23 | J100: 26 | K100: 0 | L100: 0 | M100: 49
A101: 2024-09-22 | B101: 9 | C101: 9 | D101: 0 | E101: 0 | F101: 18 | H101: 2024-09-22 | I101: 24 | J101: 14 | K101: 0 | L101: 0 | M101: 38
A102: 2024-10-22 | B102: 14 | C102: 20 | D102: 0 | E102: 0 | F102: 34 | H102: 2024-10-22 | I102: 12 | J102: 31 | K102: 0 | L102: 0 | M102: 43
A103: 2024-11-22 | B103: 13 | C103: 3 | D103: 0 | E103: 0 | F103: 16 | H103: 2024-11-22 | I103: 14 | J103: 36 | K103: 0 | L103: 0 | M103: 50
A104: 2024-12-22 | B104: 9 | C104: 7 | D104: 0 | E104: 0 | F104: 16 | H104: 2024-12-22 | I104: 18 | J104: 27 | K104: 0 | L104: 1 | M104: 46
A105: 2025-01-22 | B105: 7 | C105: 38 | D105: 0 | E105: 2 | F105: 47 | H105: 2025-01-22 | I105: 12 | J105: 26 | K105: 0 | L105: 0 | M105: 38
A106: 2025-02-22 | B106: 0 | C106: 56 | D106: 0 | E106: 0 | F106: 56 | H106: 2025-02-22 | I106: 0 | J106: 19 | K106: 0 | L106: 0 | M106: 19
A107: 2025-03-22 | B107: 1 | C107: 36 | D107: 0 | E107: 0 | F107: 37 | H107: 2025-03-22 | I107: 2 | J107: 33 | K107: 0 | L107: 0 | M107: 35
A108: 2025-04-22 | B108: 0 | C108: 30 | D108: 0 | E108: 0 | F108: =SUM(B108:E108) -> 30 | H108: 2025-04-22 | I108: 0 | J108: 32 | K108: 0 | L108: 0 | M108: =SUM(I108:L108) -> 32
A112: Cross Boundary Transfers
A113: Month | B113: Frequency | C113: Information
A114: 2023-06-01 | B114: N/A | C114: N/A
A115: 2024-04-01 | B115: N/A | C115: N/A
A116: 2024-05-01 | B116: N/A | C116: N/A
A117: 2024-06-01 | B117: N/A | C117: N/A
A118: 2024-07-01 | B118: N/A | C118: N/A
A119: 2024-08-01 | B119: N/A | C119: N/A
A120: 2024-09-01 | B120: N/A | C120: N/A
A121: 2024-10-01 | B121: 1 | C121: FT-D2 transfer request from NW Alberta and NE B.C. Area to Edmonton and Area was denied
A122: 2024-11-01 | B122: N/A | C122: N/A
A123: 2024-12-01 | B123: N/A | C123: N/A
A124: 2025-01-01 | B124: N/A | C124: N/A
A125: 2025-02-01 | B125: N/A | C125: N/A
A126: 2025-03-01 | B126: N/A | C126: N/A
A127: 2025-04-01 | B127: N/A | C127: N/A
A130: Notes:
A131: 1. Values represent the number of transfer requests processed in the specified month, regardless of effective date
A132: 2. Includes all "out and back" and "one-way" transfers
A133: 3. Out and back transfer requests are tallied as a single transaction
A134: 4. Transfers to storage are not included in totals
A135: 5. Transfers that cross a Delivery Design Area boundary are tallied in the area where the "To" location is situated
A136: 6. Cancelled transfer requests are initiated by the requester (customer, marketer etc.)
A137: 7. ATP is the acronym for Automated Transfer Process, requests that meet certain criteria may be approved automatically
A138: 8. Delivery Design Area boundaries are illustrated in the Design Methodology document on Customer Express (see NGTL/Regulatory/Facilities)
A139: http://www.tccustomerexpress.com/docs/ab_regulatory_facilities/Facilities%20Design%20Methodology%20Document%20-%20Revision%20May%2031,%202018_Oct%204.pdf

Sheet FT-D Transfers (Volume)
A1: FT-D Transfer Summary - Volume (GJ/d)
A2: Total | F2: NW Alberta and NE BC | J2: NE Alberta | N2: Edmonton and Area | R2: SW Alberta | V2: SE Alberta
A3: Month | B3: Approved | C3: Denied | D3: Cancelled | E3: Total | F3: Approved | G3: Denied | H3: Cancelled | I3: Total | J3: Approved | K3: Denied | L3: Cancelled | M3: Total | N3: Approved | O3: Denied | P3: Cancelled | Q3: Total | R3: Approved | S3: Denied | T3: Cancelled | U3: Total | V3: Approved | W3: Denied | X3: Cancelled | Y3: Total
A4: 2024-04-22 | B4: =SUM(F4,J4,N4,R4,V4) -> 2600305 | C4: =SUM(G4,K4,O4,S4,W4) -> 0 | D4: =SUM(H4,L4,P4,T4,X4) -> 0 | E4: =SUM(B4:D4) -> 2600305 | F4: =SUM(F21,F38,F55,F82) -> 55000 | G4: 0 | H4: 0 | I4: =SUM(F4:H4) -> 55000 | J4: =SUM(J21,J38,J55,J82) -> 50001 | K4: 0 | L4: 0 | M4: =SUM(J4:L4) -> 50001 | N4: =SUM(N21,N38,N55,N82) -> 4000 | O4: 0 | P4: 0 | Q4: =SUM(N4:P4) -> 4000 | R4: =SUM(R21,R38,R55,R82) -> 0 | S4: 0 | T4: 0 | U4: =SUM(R4:T4) -> 0 | V4: =SUM(V21,V38,V55,V82,B98,C98,I98,J98) -> 2491304 | W4: =SUM(W21,W38,W55,W82,D98,K98) -> 0 | X4: =SUM(X21,X38,X55,X82,E98,L98) -> 0 | Y4: =SUM(V4:X4) -> 2491304
A5: 2024-05-22 | B5: 2137369 | C5: 0 | D5: 12900 | E5: 2150269 | F5: =SUM(F22,F39,F56,F83) -> 309 | G5: 0 | H5: 0 | I5: 309 | J5: =SUM(J22,J39,J56,J83) -> 12500 | K5: 0 | L5: 7500 | M5: 20000 | N5: =SUM(N22,N39,N56,N83) -> 3000 | O5: 0 | P5: 0 | Q5: 3000 | R5: =SUM(R22,R39,R56,R83) -> 0 | S5: 0 | T5: 0 | U5: 0 | V5: =SUM(V22,V39,V56,V83,B99,C99,I99,J99) -> 2121560 | W5: =SUM(W22,W39,W56,W83,D99,K99) -> 0 | X5: =SUM(X22,X39,X56,X83,E99,L99) -> 5400 | Y5: 2126960
A6: 2024-06-22 | B6: 2160540 | C6: 0 | D6: 46833 | E6: 2207373 | F6: =SUM(F23,F40,F57,F84) -> 0 | G6: 0 | H6: 0 | I6: 0 | J6: =SUM(J23,J40,J57,J84) -> 12500 | K6: 0 | L6: 7500 | M6: 20000 | N6: =SUM(N23,N40,N57,N84) -> 3000 | O6: 0 | P6: 0 | Q6: 3000 | R6: =SUM(R23,R40,R57,R84) -> 0 | S6: 0 | T6: 0 | U6: 0 | V6: =SUM(V23,V40,V57,V84,B100,C100,I100,J100) -> 2145040 | W6: =SUM(W23,W40,W57,W84,D100,K100) -> 0 | X6: =SUM(X23,X40,X57,X84,E100,L100) -> 39333 | Y6: 2184373
A7: 2024-07-22 | B7: 2378446 | C7: 0 | D7: 6020 | E7: 2384466 | F7: =SUM(F24,F41,F58,F85) -> 0 | G7: 0 | H7: 0 | I7: 0 | J7: =SUM(J24,J41,J58,J85) -> 7520 | K7: 0 | L7: 20 | M7: 7540 | N7: =SUM(N24,N41,N58,N85) -> 3000 | O7: 0 | P7: 0 | Q7: 3000 | R7: =SUM(R24,R41,R58,R85) -> 0 | S7: 0 | T7: 0 | U7: 0 | V7: =SUM(V24,V41,V58,V85,B101,C101,I101,J101) -> 2367926 | W7: =SUM(W24,W41,W58,W85,D101,K101) -> 0 | X7: =SUM(X24,X41,X58,X85,E101,L101) -> 6000 | Y7: 2373926
A8: 2024-08-22 | B8: 2076734 | C8: 0 | D8: 6000 | E8: 2082734 | F8: =SUM(F25,F42,F59,F86) -> 0 | G8: 0 | H8: 0 | I8: 0 | J8: =SUM(J25,J42,J59,J86) -> 12500 | K8: 0 | L8: 0 | M8: 12500 | N8: =SUM(N25,N42,N59,N86) -> 4130 | O8: 0 | P8: 0 | Q8: 4130 | R8: =SUM(R25,R42,R59,R86) -> 0 | S8: 0 | T8: 0 | U8: 0 | V8: =SUM(V25,V42,V59,V86,B102,C102,I102,J102) -> 2060104 | W8: =SUM(W25,W42,W59,W86,D102,K102) -> 0 | X8: =SUM(X25,X42,X59,X86,E102,L102) -> 6000 | Y8: 2066104
A9: 2024-09-22 | B9: 1445127 | C9: 0 | D9: 6000 | E9: 1451127 | F9: =SUM(F26,F43,F60,F87) -> 40 | G9: 0 | H9: 0 | I9: 40 | J9: =SUM(J26,J43,J60,J87) -> 5000 | K9: 0 | L9: 0 | M9: 5000 | N9: =SUM(N26,N43,N60,N87) -> 3000 | O9: 0 | P9: 0 | Q9: 3000 | R9: =SUM(R26,R43,R60,R87) -> 0 | S9: 0 | T9: 0 | U9: 0 | V9: =SUM(V26,V43,V60,V87,B103,C103,I103,J103) -> 1437087 | W9: =SUM(W26,W43,W60,W87,D103,K103) -> 0 | X9: =SUM(X26,X43,X60,X87,E103,L103) -> 6000 | Y9: 1443087
A10: 2024-10-22 | B10: 1341115 | C10: 25 | D10: 0 | E10: 1341140 | F10: =SUM(F27,F44,F61,F88) -> 0 | G10: 0 | H10: 0 | I10: 0 | J10: =SUM(J27,J44,J61,J88) -> 20000 | K10: 0 | L10: 0 | M10: 20000 | N10: =SUM(N27,N44,N61,N88) -> 6000 | O10: 25 | P10: 0 | Q10: 6025 | R10: =SUM(R27,R44,R61,R88) -> 0 | S10: 0 | T10: 0 | U10: 0 | V10: =SUM(V27,V44,V61,V88,B104,C104,I104,J104) -> 1315115 | W10: =SUM(W27,W44,W61,W88,D104,K104) -> 0 | X10: =SUM(X27,X44,X61,X88,E104,L104) -> 0 | Y10: 1315115
A11: 2024-11-22 | B11: 1360525 | C11: 25 | D11: 0 | E11: 1360550 | F11: =SUM(F28,F45,F62,F88) -> 0 | G11: =SUM(G28,G45,G62,G88) -> 0 | H11: =SUM(H28,H45,H62,H88) -> 0 | I11: 0 | J11: =SUM(J28,J45,J62,J88) -> 10000 | K11: =SUM(K28,K45,K62,K88) -> 0 | L11: =SUM(L28,L45,L62,L88) -> 0 | M11: 10000 | N11: =SUM(N28,N45,N62,N88) -> 6000 | O11: =SUM(O28,O45,O62,O88) -> 25 | P11: =SUM(P28,P45,P62,P88) -> 0 | Q11: 6025 | R11: =SUM(R28,R45,R62,R88) -> 0 | S11: =SUM(S28,S45,S62,S88) -> 0 | T11: =SUM(T28,T45,T62,T88) -> 0 | U11: 0 | V11: =SUM(V28,V45,V62,V89,B105,C105,I105,J105) -> 1344525 | W11: =SUM(W28,W45,W62,W89,D105,K105) -> 0 | X11: =SUM(X28,X45,X62,X89,E105,L105) -> 0 | Y11: 1344525
A12: 2024-12-22 | B12: 1662771 | C12: 0 | D12: 0 | E12: 1662771 | F12: =SUM(F29,F46,F63,F90) -> 0 | G12: 0 | H12: 0 | I12: 0 | J12: =SUM(J29,J46,J63,J90) -> 12500 | K12: 0 | L12: 0 | M12: 12500 | N12: =SUM(N29,N46,N63,N90) -> 9000 | O12: 0 | P12: 0 | Q12: 9000 | R12: =SUM(R29,R46,R63,R90) -> 10000 | S12: 0 | T12: 0 | U12: 10000 | V12: =SUM(V29,V46,V63,V90,B106,C106,I106,J106) -> 1631271 | W12: =SUM(W29,W46,W63,W90,D106,K106) -> 0 | X12: =SUM(X29,X46,X63,X90,E106,L106) -> 0 | Y12: 1631271
A13: 2025-01-22 | B13: 1662611 | C13: =SUM(G13,K13,O13,S13,W13) -> 0 | D13: 0 | E13: 1662611 | F13: =SUM(F30,F47,F64,F91) -> 0 | G13: 0 | H13: 0 | I13: 0 | J13: =SUM(J30,J47,J64,J91) -> 12500 | K13: 0 | L13: 0 | M13: 12500 | N13: =SUM(N30,N47,N64,N91) -> 8200 | O13: 0 | P13: 0 | Q13: 8200 | R13: =SUM(R30,R47,R64,R91) -> 10000 | S13: 0 | T13: 0 | U13: =SUM(U30,U47,U64,U91) -> 10000 | V13: =SUM(V30,V47,V64,V91,B106,C106,I106,J106) -> 1631911 | W13: =SUM(W30,W47,W64,W91,D106,K106) -> 0 | X13: =SUM(X30,X47,X64,X91,E106,L106) -> 0 | Y13: 1631911
A14: 2025-02-22 | B14: 1853872 | C14: =SUM(G14,K14,O14,S14,W14) -> 0 | D14: 17489 | E14: 1871361 | F14: =SUM(F31,F48,F65,F92) -> 0 | G14: 0 | H14: 0 | I14: 0 | J14: =SUM(J31,J48,J65,J92) -> 9500 | K14: 0 | L14: 3000 | M14: 12500 | N14: =SUM(N31,N48,N65,N92) -> 7000 | O14: 0 | P14: 0 | Q14: 7000 | R14: =SUM(R31,R48,R65,R92) -> 8174 | S14: 0 | T14: 0 | U14: =SUM(U31,U48,U65,U92) -> 8174 | V14: =SUM(V31,V48,V65,V92,B107,C107,I107,J107) -> 1829198 | W14: =SUM(W31,W48,W65,W92,D107,K107) -> 0 | X14: =SUM(X31,X48,X65,X92,E107,L107) -> 14489 | Y14: 1843687
A15: 2025-03-22 | B15: 1491417 | C15: =SUM(G15,K15,O15,S15,W15) -> 1131514 | D15: 0 | E15: 2622931 | F15: =SUM(F32,F49,F66,F92) -> 0 | G15: =SUM(G32,G49,G66,G92) -> 0 | H15: =SUM(H32,H49,H66,H92) -> 0 | I15: 0 | J15: =SUM(J32,J49,J66,J92) -> 12500 | K15: =SUM(K32,K49,K66,K92) -> 0 | L15: =SUM(L32,L49,L66,L92) -> 0 | M15: 12500 | N15: =SUM(N32,N49,N66,N92) -> 3000 | O15: =SUM(O32,O49,O66,O92) -> 0 | P15: =SUM(P32,P49,P66,P92) -> 0 | Q15: 3000 | R15: =SUM(R32,R49,R66,R92) -> 5400 | S15: =SUM(S32,S49,S66,S92) -> 0 | T15: =SUM(T32,T49,T66,T92) -> 0 | U15: =SUM(U32,U49,U66,U92) -> 5400 | V15: =SUM(V32,V49,V66,V93,B109,C109,I109,J109) -> 1470517 | W15: =SUM(W32,W49,W66,W93,C109,D109,J109,K109) -> 1131514 | X15: =SUM(X32,X49,X66,X93,E109,L109) -> 0 | Y15: 2602031
A16: 2025-04-22 | B16: =SUM(F16,J16,N16,R16,V16) -> 1399480 | C16: =SUM(G16,K16,O16,S16,W16) -> 0 | D16: =SUM(H16,L16,P16,T16,X16) -> 10900 | E16: =SUM(B16:D16) -> 1410380 | F16: =SUM(F33,F50,F67,F93) -> 0 | G16: =SUM(G33,G50,G67,G93) -> 0 | H16: =SUM(H33,H50,H67,H93) -> 0 | I16: =SUM(F16:H16) -> 0 | J16: =SUM(J33,J50,J67,J93) -> 45000 | K16: =SUM(K33,K50,K67,K93) -> 0 | L16: =SUM(L33,L50,L67,L93) -> 0 | M16: =SUM(J16:L16) -> 45000 | N16: =SUM(N33,N50,N67,N93) -> 4000 | O16: =SUM(O33,O50,O67,O93) -> 0 | P16: =SUM(P33,P50,P67,P93) -> 0 | Q16: =SUM(N16:P16) -> 4000 | R16: =SUM(R33,R50,R67,R93) -> 17874 | S16: =SUM(S33,S50,S67,S93) -> 0 | T16: =SUM(T33,T50,T67,T93) -> 0 | U16: =SUM(U33,U50,U67,U93) -> 17874 | V16: =SUM(V33,V50,V67,V94,B110,C110,I110,J110) -> 1332606 | W16: =SUM(W33,W50,W67,W94,D110,K110) -> 0 | X16: =SUM(X33,X50,X67,X94,E110,L110) -> 10900 | Y16: =SUM(V16:X16) -> 1343506
A18: FT-D2 to FT-D2 Transfer Summary
A19: Total | F19: NW Alberta and NE BC | J19: NE Alberta | N19: Edmonton and Area | R19: SW Alberta | V19: SE Alberta
A20: Month | B20: Approved | C20: Denied | D20: Cancelled | E20: Total | F20: Approved | G20: Denied | H20: Cancelled | I20: Total | J20: Approved | K20: Denied | L20: Cancelled | M20: Total | N20: Approved | O20: Denied | P20: Cancelled | Q20: Total | R20: Approved | S20: Denied | T20: Cancelled | U20: Total | V20: Approved | W20: Denied | X20: Cancelled | Y20: Total
A21: 2024-04-22 | B21: =SUM(F21,J21,N21,R21,V21) -> 156800 | C21: =SUM(G21,K21,O21,S21,W21) -> 0 | D21: =SUM(H21,L21,P21,T21,X21) -> 0 | E21: =SUM(B21:D21) -> 156800 | F21: 55000 | G21: 0 | H21: 0 | I21: =SUM(F21:H21) -> 55000 | J21: 50000 | K21: 0 | L21: 0 | M21: =SUM(J21:L21) -> 50000 | N21: 4000 | O21: 0 | P21: 0 | Q21: =SUM(N21:P21) -> 4000 | R21: 0 | S21: 0 | T21: 0 | U21: =SUM(R21:T21) -> 0 | V21: 47800 | W21: 0 | X21: 0 | Y21: =SUM(V21:X21) -> 47800
A22: 2024-05-22 | B22: 33109 | C22: 0 | D22: 7500 | E22: 40609 | F22: 309 | G22: 0 | H22: 0 | I22: 309 | J22: 12500 | K22: 0 | L22: 7500 | M22: 20000 | N22: 3000 | O22: 0 | P22: 0 | Q22: 3000 | R22: 0 | S22: 0 | T22: 0 | U22: 0 | V22: 17300 | W22: 0 | X22: 0 | Y22: 17300
A23: 2024-06-22 | B23: 46680 | C23: 0 | D23: 7500 | E23: 54180 | F23: 0 | G23: 0 | H23: 0 | I23: 0 | J23: 12500 | K23: 0 | L23: 7500 | M23: 20000 | N23: 3000 | O23: 0 | P23: 0 | Q23: 3000 | R23: 0 | S23: 0 | T23: 0 | U23: 0 | V23: 31180 | W23: 0 | X23: 0 | Y23: 31180
A24: 2024-07-22 | B24: 81260 | C24: 0 | D24: 20 | E24: 81280 | F24: 0 | G24: 0 | H24: 0 | I24: 0 | J24: 7520 | K24: 0 | L24: 20 | M24: 7540 | N24: 3000 | O24: 0 | P24: 0 | Q24: 3000 | R24: 0 | S24: 0 | T24: 0 | U24: 0 | V24: 70740 | W24: 0 | X24: 0 | Y24: 70740
A25: 2024-08-22 | B25: 44300 | C25: 0 | D25: 0 | E25: 44300 | F25: 0 | G25: 0 | H25: 0 | I25: 0 | J25: 12500 | K25: 0 | L25: 0 | M25: 12500 | N25: 4000 | O25: 0 | P25: 0 | Q25: 4000 | R25: 0 | S25: 0 | T25: 0 | U25: 0 | V25: 27800 | W25: 0 | X25: 0 | Y25: 27800
A26: 2024-09-22 | B26: 29780 | C26: 0 | D26: 0 | E26: 29780 | F26: 40 | G26: 0 | H26: 0 | I26: 40 | J26: 5000 | K26: 0 | L26: 0 | M26: 5000 | N26: 3000 | O26: 0 | P26: 0 | Q26: 3000 | R26: 0 | S26: 0 | T26: 0 | U26: 0 | V26: 21740 | W26: 0 | X26: 0 | Y26: 21740
A27: 2024-10-22 | B27: 59740 | C27: 25 | D27: 0 | E27: 59765 | F27: 0 | G27: 0 | H27: 0 | I27: 0 | J27: 20000 | K27: 0 | L27: 0 | M27: 20000 | N27: 6000 | O27: 25 | P27: 0 | Q27: 6025 | R27: 0 | S27: 0 | T27: 0 | U27: 0 | V27: 33740 | W27: 0 | X27: 0 | Y27: 33740
A28: 2024-11-22 | B28: 44150 | C28: 25 | D28: 0 | E28: 44175 | F28: 0 | G28: 0 | H28: 0 | I28: 0 | J28: 10000 | K28: 0 | L28: 0 | M28: 10000 | N28: 6000 | O28: 25 | P28: 0 | Q28: 6025 | R28: 0 | S28: 0 | T28: 0 | U28: 0 | V28: 28150 | W28: 0 | X28: 0 | Y28: 28150
A29: 2024-12-22 | B29: 47100 | C29: 0 | D29: 0 | E29: 47100 | F29: 0 | G29: 0 | H29: 0 | I29: 0 | J29: 12500 | K29: 0 | L29: 0 | M29: 12500 | N29: 9000 | O29: 0 | P29: 0 | Q29: 9000 | R29: 0 | S29: 0 | T29: 0 | U29: 0 | V29: 25600 | W29: 0 | X29: 0 | Y29: 25600
A30: 2025-01-22 | B30: 46740 | C30: 0 | D30: 0 | E30: 46740 | F30: 0 | G30: 0 | H30: 0 | I30: 0 | J30: 12500 | K30: 0 | L30: 0 | M30: 12500 | N30: 8000 | O30: 0 | P30: 0 | Q30: 8000 | R30: 0 | S30: 0 | T30: 0 | U30: 0 | V30: 26240 | W30: 0 | X30: 0 | Y30: 26240
A31: 2025-02-22 | B31: 38074 | C31: 0 | D31: 3000 | E31: 41074 | F31: 0 | G31: 0 | H31: 0 | I31: 0 | J31: 9500 | K31: 0 | L31: 3000 | M31: 12500 | N31: 7000 | O31: 0 | P31: 0 | Q31: 7000 | R31: 2774 | S31: 0 | T31: 0 | U31: 2774 | V31: 18800 | W31: 0 | X31: 0 | Y31: 18800
A32: 2025-03-22 | B32: 39740 | C32: 0 | D32: 0 | E32: 39740 | F32: 0 | G32: 0 | H32: 0 | I32: 0 | J32: 12500 | K32: 0 | L32: 0 | M32: 12500 | N32: 3000 | O32: 0 | P32: 0 | Q32: 3000 | R32: 0 | S32: 0 | T32: 0 | U32: 0 | V32: 24240 | W32: 0 | X32: 0 | Y32: 24240
A33: 2025-04-22 | B33: =SUM(F33,J33,N33,R33,V33) -> 54450 | C33: =SUM(G33,K33,O33,S33,W33) -> 0 | D33: =SUM(H33,L33,P33,T33,X33) -> 10900 | E33: =SUM(B33:D33) -> 65350 | F33: 0 | G33: 0 | H33: 0 | I33: =SUM(F33:H33) -> 0 | J33: 45000 | K33: 0 | L33: 0 | M33: =SUM(J33:L33) -> 45000 | N33: 4000 | O33: 0 | P33: 0 | Q33: =SUM(N33:P33) -> 4000 | R33: 0 | S33: 0 | T33: 0 | U33: =SUM(R33:T33) -> 0 | V33: 5450 | W33: 0 | X33: 10900 | Y33: =SUM(V33:X33) -> 16350
A35: FT-D3 to FT-D3 Transfer Summary
A36: Total | F36: NW Alberta and NE BC | J36: NE Alberta | N36: Edmonton and Area | R36: SW Alberta | V36: SE Alberta
A37: Month | B37: Approved | C37: Denied | D37: Cancelled | E37: Total | F37: Approved | G37: Denied | H37: Cancelled | I37: Total | J37: Approved | K37: Denied | L37: Cancelled | M37: Total | N37: Approved | O37: Denied | P37: Cancelled | Q37: Total | R37: Approved | S37: Denied | T37: Cancelled | U37: Total | V37: Approved | W37: Denied | X37: Cancelled | Y37: Total
A38: 2024-04-22 | B38: =SUM(F38,J38,N38,R38,V38) -> 1 | C38: =SUM(G38,K38,O38,S38,W38) -> 0 | D38: =SUM(H38,L38,P38,T38,X38) -> 0 | E38: =SUM(B38:D38) -> 1 | F38: 0 | G38: 0 | H38: 0 | I38: =SUM(F38:H38) -> 0 | J38: 1 | K38: 0 | L38: 0 | M38: =SUM(J38:L38) -> 1 | N38: 0 | O38: 0 | P38: 0 | Q38: =SUM(N38:P38) -> 0 | R38: 0 | S38: 0 | T38: 0 | U38: =SUM(R38:T38) -> 0 | V38: 0 | W38: 0 | X38: 0 | Y38: 0
A39: 2024-05-22 | B39: 0 | C39: 0 | D39: 0 | E39: 0 | F39: 0 | G39: 0 | H39: 0 | I39: 0 | J39: 0 | K39: 0 | L39: 0 | M39: 0 | N39: 0 | O39: 0 | P39: 0 | Q39: 0 | R39: 0 | S39: 0 | T39: 0 | U39: 0 | V39: 0 | W39: 0 | X39: 0 | Y39: 0
A40: 2024-06-22 | B40: 0 | C40: 0 | D40: 0 | E40: 0 | F40: 0 | G40: 0 | H40: 0 | I40: 0 | J40: 0 | K40: 0 | L40: 0 | M40: 0 | N40: 0 | O40: 0 | P40: 0 | Q40: 0 | R40: 0 | S40: 0 | T40: 0 | U40: 0 | V40: 0 | W40: 0 | X40: 0 | Y40: 0
A41: 2024-07-22 | B41: 0 | C41: 0 | D41: 0 | E41: 0 | F41: 0 | G41: 0 | H41: 0 | I41: 0 | J41: 0 | K41: 0 | L41: 0 | M41: 0 | N41: 0 | O41: 0 | P41: 0 | Q41: 0 | R41: 0 | S41: 0 | T41: 0 | U41: 0 | V41: 0 | W41: 0 | X41: 0 | Y41: 0
A42: 2024-08-22 | B42: 130 | C42: 0 | D42: 0 | E42: 130 | F42: 0 | G42: 0 | H42: 0 | I42: 0 | J42: 0 | K42: 0 | L42: 0 | M42: 0 | N42: 130 | O42: 0 | P42: 0 | Q42: 130 | R42: 0 | S42: 0 | T42: 0 | U42: 0 | V42: 0 | W42: 0 | X42: 0 | Y42: 0
A43: 2024-09-22 | B43: 0 | C43: 0 | D43: 0 | E43: 0 | F43: 0 | G43: 0 | H43: 0 | I43: 0 | J43: 0 | K43: 0 | L43: 0 | M43: 0 | N43: 0 | O43: 0 | P43: 0 | Q43: 0 | R43: 0 | S43: 0 | T43: 0 | U43: 0 | V43: 0 | W43: 0 | X43: 0 | Y43: 0
A44: 2024-10-22 | B44: 0 | C44: 0 | D44: 0 | E44: 0 | F44: 0 | G44: 0 | H44: 0 | I44: 0 | J44: 0 | K44: 0 | L44: 0 | M44: 0 | N44: 0 | O44: 0 | P44: 0 | Q44: 0 | R44: 0 | S44: 0 | T44: 0 | U44: 0 | V44: 0 | W44: 0 | X44: 0 | Y44: 0
A45: 2024-11-22 | B45: 0 | C45: 0 | D45: 0 | E45: 0 | F45: 0 | G45: 0 | H45: 0 | I45: 0 | J45: 0 | K45: 0 | L45: 0 | M45: 0 | N45: 0 | O45: 0 | P45: 0 | Q45: 0 | R45: 0 | S45: 0 | T45: 0 | U45: 0 | V45: 0 | W45: 0 | X45: 0 | Y45: 0
A46: 2024-12-22 | B46: 0 | C46: 0 | D46: 0 | E46: 0 | F46: 0 | G46: 0 | H46: 0 | I46: 0 | J46: 0 | K46: 0 | L46: 0 | M46: 0 | N46: 0 | O46: 0 | P46: 0 | Q46: 0 | R46: 0 | S46: 0 | T46: 0 | U46: 0 | V46: 0 | W46: 0 | X46: 0 | Y46: 0
A47: 2025-01-22 | B47: 200 | C47: 0 | D47: 0 | E47: 200 | F47: 0 | G47: 0 | H47: 0 | I47: 0 | J47: 0 | K47: 0 | L47: 0 | M47: 0 | N47: 200 | O47: 0 | P47: 0 | Q47: 200 | R47: 0 | S47: 0 | T47: 0 | U47: 0 | V47: 0 | W47: 0 | X47: 0 | Y47: 0
A48: 2025-02-22 | B48: 0 | C48: 0 | D48: 0 | E48: 0 | F48: 0 | G48: 0 | H48: 0 | I48: 0 | J48: 0 | K48: 0 | L48: 0 | M48: 0 | N48: 0 | O48: 0 | P48: 0 | Q48: 0 | R48: 0 | S48: 0 | T48: 0 | U48: 0 | V48: 0 | W48: 0 | X48: 0 | Y48: 0
A49: 2025-03-22 | B49: 0 | C49: 0 | D49: 0 | E49: 0 | F49: 0 | G49: 0 | H49: 0 | I49: 0 | J49: 0 | K49: 0 | L49: 0 | M49: 0 | N49: 0 | O49: 0 | P49: 0 | Q49: 0 | R49: 0 | S49: 0 | T49: 0 | U49: 0 | V49: 0 | W49: 0 | X49: 0 | Y49: 0
A50: 2025-04-22 | B50: =SUM(F50,J50,N50,R50,V50) -> 0 | C50: =SUM(G50,K50,O50,S50,W50) -> 0 | D50: =SUM(H50,L50,P50,T50,X50) -> 0 | E50: =SUM(B50:D50) -> 0 | F50: 0 | G50: 0 | H50: 0 | I50: =SUM(F50:H50) -> 0 | J50: 0 | K50: 0 | L50: 0 | M50: =SUM(J50:L50) -> 0 | N50: 0 | O50: 0 | P50: 0 | Q50: =SUM(N50:P50) -> 0 | R50: 0 | S50: 0 | T50: 0 | U50: =SUM(R50:T50) -> 0 | V50: 0 | W50: 0 | X50: 0 | Y50: 0
A52: FT-D1 to FT-D2 Transfer Summary
A53: Total | F53: NW Alberta and NE BC | J53: NE Alberta | N53: Edmonton and Area | R53: SW Alberta | V53: SE Alberta
A54: Month | B54: Approved | C54: Denied | D54: Cancelled | E54: Total | F54: Approved | G54: Denied | H54: Cancelled | I54: Total | J54: Approved | K54: Denied | L54: Cancelled | M54: Total | N54: Approved | O54: Denied | P54: Cancelled | Q54: Total | R54: Approved | S54: Denied | T54: Cancelled | U54: Total | V54: Approved | W54: Denied | X54: Cancelled | Y54: Total
A55: 2024-04-22 | B55: =SUM(F55,J55,N55,R55,V55) -> 0 | C55: =SUM(G55,K55,O55,S55,W55) -> 0 | D55: =SUM(H55,L55,P55,T55,X55) -> 0 | E55: =SUM(I55,M55,Q55,U55,Y55) -> 0 | F55: 0 | G55: 0 | H55: 0 | I55: =SUM(F55:H55) -> 0 | J55: 0 | K55: 0 | L55: 0 | M55: =SUM(J55:L55) -> 0 | N55: 0 | O55: 0 | P55: 0 | Q55: =SUM(N55:P55) -> 0 | R55: 0 | S55: 0 | T55: 0 | U55: =SUM(R55:T55) -> 0 | V55: 0 | W55: 0 | X55: 0 | Y55: 0
A56: 2024-05-22 | B56: 0 | C56: 0 | D56: 0 | E56: 0 | F56: 0 | G56: 0 | H56: 0 | I56: 0 | J56: 0 | K56: 0 | L56: 0 | M56: 0 | N56: 0 | O56: 0 | P56: 0 | Q56: 0 | R56: 0 | S56: 0 | T56: 0 | U56: 0 | V56: 0 | W56: 0 | X56: 0 | Y56: 0
A57: 2024-06-22 | B57: 0 | C57: 0 | D57: 0 | E57: 0 | F57: 0 | G57: 0 | H57: 0 | I57: 0 | J57: 0 | K57: 0 | L57: 0 | M57: 0 | N57: 0 | O57: 0 | P57: 0 | Q57: 0 | R57: 0 | S57: 0 | T57: 0 | U57: 0 | V57: 0 | W57: 0 | X57: 0 | Y57: 0
A58: 2024-07-22 | B58: 189000 | C58: 0 | D58: 0 | E58: 189000 | F58: 0 | G58: 0 | H58: 0 | I58: 0 | J58: 0 | K58: 0 | L58: 0 | M58: 0 | N58: 0 | O58: 0 | P58: 0 | Q58: 0 | R58: 0 | S58: 0 | T58: 0 | U58: 0 | V58: 189000 | W58: 0 | X58: 0 | Y58: =SUM(V58:X58) -> 189000
A59: 2024-08-22 | B59: 0 | C59: 0 | D59: 0 | E59: 0 | F59: 0 | G59: 0 | H59: 0 | I59: 0 | J59: 0 | K59: 0 | L59: 0 | M59: 0 | N59: 0 | O59: 0 | P59: 0 | Q59: 0 | R59: 0 | S59: 0 | T59: 0 | U59: 0 | V59: 0 | W59: 0 | X59: 0 | Y59: 0
A60: 2024-09-22 | B60: 0 | C60: 0 | D60: 0 | E60: 0 | F60: 0 | G60: 0 | H60: 0 | I60: 0 | J60: 0 | K60: 0 | L60: 0 | M60: 0 | N60: 0 | O60: 0 | P60: 0 | Q60: 0 | R60: 0 | S60: 0 | T60: 0 | U60: 0 | V60: 0 | W60: 0 | X60: 0 | Y60: 0
A61: 2024-10-22 | B61: 0 | C61: 0 | D61: 0 | E61: 0 | F61: 0 | G61: 0 | H61: 0 | I61: 0 | J61: 0 | K61: 0 | L61: 0 | M61: 0 | N61: 0 | O61: 0 | P61: 0 | Q61: 0 | R61: 0 | S61: 0 | T61: 0 | U61: 0 | V61: 0 | W61: 0 | X61: 0 | Y61: 0
A62: 2024-11-22 | B62: 0 | C62: 0 | D62: 0 | E62: 0 | F62: 0 | G62: 0 | H62: 0 | I62: 0 | J62: 0 | K62: 0 | L62: 0 | M62: 0 | N62: 0 | O62: 0 | P62: 0 | Q62: 0 | R62: 0 | S62: 0 | T62: 0 | U62: 0 | V62: 0 | W62: 0 | X62: 0 | Y62: 0
A63: 2024-12-22 | B63: 0 | C63: 0 | D63: 0 | E63: 0 | F63: 0 | G63: 0 | H63: 0 | I63: 0 | J63: 0 | K63: 0 | L63: 0 | M63: 0 | N63: 0 | O63: 0 | P63: 0 | Q63: 0 | R63: 0 | S63: 0 | T63: 0 | U63: 0 | V63: 0 | W63: 0 | X63: 0 | Y63: 0
A64: 2025-01-22 | B64: 0 | C64: 0 | D64: 0 | E64: 0 | F64: 0 | G64: 0 | H64: 0 | I64: 0 | J64: 0 | K64: 0 | L64: 0 | M64: 0 | N64: 0 | O64: 0 | P64: 0 | Q64: 0 | R64: 0 | S64: 0 | T64: 0 | U64: 0 | V64: 0 | W64: 0 | X64: 0 | Y64: 0
A65: 2025-02-22 | B65: 0 | C65: 0 | D65: 0 | E65: 0 | F65: 0 | G65: 0 | H65: 0 | I65: 0 | J65: 0 | K65: 0 | L65: 0 | M65: 0 | N65: 0 | O65: 0 | P65: 0 | Q65: 0 | R65: 0 | S65: 0 | T65: 0 | U65: 0 | V65: 0 | W65: 0 | X65: 0 | Y65: 0
A66: 2025-03-22 | B66: 0 | C66: 0 | D66: 0 | E66: 0 | F66: 0 | G66: 0 | H66: 0 | I66: 0 | J66: 0 | K66: 0 | L66: 0 | M66: 0 | N66: 0 | O66: 0 | P66: 0 | Q66: 0 | R66: 0 | S66: 0 | T66: 0 | U66: 0 | V66: 0 | W66: 0 | X66: 0 | Y66: 0
A67: 2025-04-22 | B67: =SUM(F67,J67,N67,R67,V67) -> 0 | C67: =SUM(G67,K67,O67,S67,W67) -> 0 | D67: =SUM(H67,L67,P67,T67,X67) -> 0 | E67: =SUM(I67,M67,Q67,U67,Y67) -> 0 | F67: 0 | G67: 0 | H67: 0 | I67: =SUM(F67:H67) -> 0 | J67: 0 | K67: 0 | L67: 0 | M67: =SUM(J67:L67) -> 0 | N67: 0 | O67: 0 | P67: 0 | Q67: =SUM(N67:P67) -> 0 | R67: 0 | S67: 0 | T67: 0 | U67: =SUM(R67:T67) -> 0 | V67: 0 | W67: 0 | X67: 0 | Y67: =SUM(V67:X67) -> 0
A78: FT-D2 to FT-D1 Transfer Summary
A79: Total | F79: NW Alberta and NE BC | J79: NE Alberta | N79: Edmonton and Area | R79: SW Alberta | V79: SE Alberta
A80: Month | B80: Approved | C80: Denied | D80: Cancelled | E80: Total | F80: Approved | G80: Denied | H80: Cancelled | I80: Total | J80: Approved | K80: Denied | L80: Cancelled | M80: Total | N80: Approved | O80: Denied | P80: Cancelled | Q80: Total | R80: Approved | S80: Denied | T80: Cancelled | U80: Total | V80: Approved | W80: Denied | X80: Cancelled | Y80: Total
A81: 2024-03-22 | B81: =SUM(F81,J81,N81,R81,V81) -> 0 | C81: =SUM(G81,K81,O81,S81,W81) -> 0 | D81: =SUM(H81,L81,P81,T81,X81) -> 0 | E81: =SUM(B81:D81) -> 0 | F81: 0 | G81: 0 | H81: 0 | I81: =SUM(F81:H81) -> 0 | J81: 0 | K81: 0 | L81: 0 | M81: =SUM(J81:L81) -> 0 | N81: 0 | O81: 0 | P81: 0 | Q81: =SUM(N81:P81) -> 0 | R81: 0 | S81: 0 | T81: 0 | U81: 0 | V81: 0 | W81: 0 | X81: 0 | Y81: 0
A82: 2024-04-22 | B82: 0 | C82: 0 | D82: 0 | E82: 0 | F82: 0 | G82: 0 | H82: 0 | I82: 0 | J82: 0 | K82: 0 | L82: 0 | M82: 0 | N82: 0 | O82: 0 | P82: 0 | Q82: 0 | R82: 0 | S82: 0 | T82: 0 | U82: 0 | V82: 0 | W82: 0 | X82: 0 | Y82: 0
A83: 2024-05-22 | B83: 0 | C83: 0 | D83: 0 | E83: 0 | F83: 0 | G83: 0 | H83: 0 | I83: 0 | J83: 0 | K83: 0 | L83: 0 | M83: 0 | N83: 0 | O83: 0 | P83: 0 | Q83: 0 | R83: 0 | S83: 0 | T83: 0 | U83: 0 | V83: 0 | W83: 0 | X83: 0 | Y83: 0
A84: 2024-06-22 | B84: 0 | C84: 0 | D84: 0 | E84: 0 | F84: 0 | G84: 0 | H84: 0 | I84: 0 | J84: 0 | K84: 0 | L84: 0 | M84: 0 | N84: 0 | O84: 0 | P84: 0 | Q84: 0 | R84: 0 | S84: 0 | T84: 0 | U84: 0 | V84: 0 | W84: 0 | X84: 0 | Y84: 0
A85: 2024-07-22 | B85: 0 | C85: 0 | D85: 0 | E85: 0 | F85: 0 | G85: 0 | H85: 0 | I85: 0 | J85: 0 | K85: 0 | L85: 0 | M85: 0 | N85: 0 | O85: 0 | P85: 0 | Q85: 0 | R85: 0 | S85: 0 | T85: 0 | U85: 0 | V85: 0 | W85: 0 | X85: 0 | Y85: 0
A86: 2024-08-22 | B86: 0 | C86: 0 | D86: 0 | E86: 0 | F86: 0 | G86: 0 | H86: 0 | I86: 0 | J86: 0 | K86: 0 | L86: 0 | M86: 0 | N86: 0 | O86: 0 | P86: 0 | Q86: 0 | R86: 0 | S86: 0 | T86: 0 | U86: 0 | V86: 0 | W86: 0 | X86: 0 | Y86: 0
A87: 2024-09-22 | B87: 0 | C87: 0 | D87: 0 | E87: 0 | F87: 0 | G87: 0 | H87: 0 | I87: 0 | J87: 0 | K87: 0 | L87: 0 | M87: 0 | N87: 0 | O87: 0 | P87: 0 | Q87: 0 | R87: 0 | S87: 0 | T87: 0 | U87: 0 | V87: 0 | W87: 0 | X87: 0 | Y87: 0
A88: 2024-10-22 | B88: 0 | C88: 0 | D88: 0 | E88: 0 | F88: 0 | G88: 0 | H88: 0 | I88: 0 | J88: 0 | K88: 0 | L88: 0 | M88: 0 | N88: 0 | O88: 0 | P88: 0 | Q88: 0 | R88: 0 | S88: 0 | T88: 0 | U88: 0 | V88: 0 | W88: 0 | X88: 0 | Y88: 0
A89: 2024-11-22 | B89: 45000 | C89: 0 | D89: 0 | E89: 45000 | F89: 0 | G89: 0 | H89: 0 | I89: 0 | J89: 0 | K89: 0 | L89: 0 | M89: 0 | N89: 0 | O89: 0 | P89: 0 | Q89: 0 | R89: 10000 | S89: 0 | T89: 0 | U89: =SUM(R89,S89,T89) -> 10000 | V89: 35000 | W89: 0 | X89: 0 | Y89: =SUM(V89,W89,X89) -> 35000
A90: 2024-12-22 | B90: 45000 | C90: 0 | D90: 0 | E90: 45000 | F90: 0 | G90: 0 | H90: 0 | I90: 0 | J90: 0 | K90: 0 | L90: 0 | M90: 0 | N90: 0 | O90: 0 | P90: 0 | Q90: 0 | R90: 10000 | S90: 0 | T90: 0 | U90: =SUM(R90,S90,T90) -> 10000 | V90: 35000 | W90: 0 | X90: 0 | Y90: =SUM(V90,W90,X90) -> 35000
A91: 2025-01-22 | B91: 45000 | C91: 0 | D91: 0 | E91: 45000 | F91: 0 | G91: 0 | H91: 0 | I91: 0 | J91: 0 | K91: 0 | L91: 0 | M91: 0 | N91: 0 | O91: 0 | P91: 0 | Q91: 0 | R91: 10000 | S91: 0 | T91: 0 | U91: =SUM(R91,S91,T91) -> 10000 | V91: 35000 | W91: 0 | X91: 0 | Y91: =SUM(V91,W91,X91) -> 35000
A92: 2025-02-22 | B92: 5400 | C92: =SUM(G92,K92,O92,S92,W92) -> 0 | D92: 0 | E92: 5400 | F92: 0 | G92: 0 | H92: 0 | I92: 0 | J92: 0 | K92: 0 | L92: 0 | M92: 0 | N92: 0 | O92: 0 | P92: 0 | Q92: 0 | R92: 5400 | S92: 0 | T92: 0 | U92: =SUM(R92:T92) -> 5400 | V92: 0 | W92: 0 | X92: 0 | Y92: =SUM(V92:X92) -> 0
A93: 2025-03-25 | B93: =SUM(F93,J93,N93,R93,V93) -> 17874 | C93: =SUM(G93,K93,O93,S93,W93) -> 0 | D93: =SUM(H93,L93,P93,T93,X93) -> 0 | E93: =SUM(B93:D93) -> 17874 | F93: 0 | G93: 0 | H93: 0 | I93: =SUM(F93:H93) -> 0 | J93: 0 | K93: 0 | L93: 0 | M93: =SUM(J93:L93) -> 0 | N93: 0 | O93: 0 | P93: 0 | Q93: =SUM(N93:P93) -> 0 | R93: 17874 | S93: 0 | T93: 0 | U93: =SUM(R93:T93) -> 17874 | V93: 0 | W93: 0 | X93: 0 | Y93: =SUM(V93:X93) -> 0
A94: 2025-04-22 | B94: 20500 | C94: =SUM(G94,K94,O94,S94,W94) -> 0 | D94: 0 | E94: 20500 | F94: 0 | G94: 0 | H94: 0 | I94: 0 | J94: 0 | K94: 0 | L94: 0 | M94: 0 | N94: 0 | O94: 0 | P94: 0 | Q94: 0 | R94: 20500 | S94: 0 | T94: 0 | U94: 0 | V94: 0 | W94: 0 | X94: 0 | Y94: 0
A96: FT-D1 to FT-D1 Transfer Summary
A97: Empress to McNeill FT-D1 | H97: McNeill to Empress FT-D1
A98: 2024-04-22 | B98: 243358 | C98: 129043 | D98: 0 | E98: 0 | F98: =SUM(B98:E98) -> 372401 | H98: 2024-04-22 | I98: 294666 | J98: 1776437 | K98: 0 | L98: 0 | M98: =SUM(I98:L98) -> 2071103
A99: 2024-05-22 | B99: 162500 | C99: 334917 | D99: 0 | E99: 5400 | F99: 502817 | H99: 2024-05-22 | I99: 115400 | J99: 1491443 | K99: 0 | L99: 0 | M99: 1606843
A100: 2024-06-22 | B100: 364768 | C100: 600571 | D100: 0 | E100: 0 | F100: 965339 | H100: 2024-06-22 | I100: 1098863 | J100: 49658 | K100: 0 | L100: 39333 | M100: 1187854
A101: 2024-07-22 | B101: 116038 | C101: 223000 | D101: 0 | E101: 0 | F101: 339038 | H101: 2024-07-22 | I101: 1692240 | J101: 76908 | K101: 0 | L101: 6000 | M101: 1775148
A102: 2024-08-22 | B102: 76411 | C102: 271525 | D102: 0 | E102: 0 | F102: 347936 | H102: 2024-08-22 | I102: 970668 | J102: 713700 | K102: 0 | L102: 6000 | M102: 1690368
A103: 2024-09-22 | B103: 160811 | C103: 159061 | D103: 0 | E103: 0 | F103: 319872 | H103: 2024-09-22 | I103: 794345 | J103: 301130 | K103: 0 | L103: 6000 | M103: 1101475
A104: 2024-10-22 | B104: 95576 | C104: 469356 | D104: 0 | E104: 0 | F104: 564932 | H104: 2024-10-22 | I104: 167182 | J104: 549261 | K104: 0 | L104: 0 | M104: 716443
A105: 2024-11-22 | B105: 95576 | C105: 469356 | D105: 0 | E105: 0 | F105: 564932 | H105: 2024-11-22 | I105: 167182 | J105: 549261 | K105: 0 | L105: 0 | M105: 716443
A106: 2024-12-22 | B106: 143847 | C106: 17400 | D106: 0 | E106: 0 | F106: 161247 | H106: 2024-12-22 | I106: 549451 | J106: 859973 | K106: 0 | L106: 0 | M106: 1409424
A107: 2025-01-22 | B107: 62300 | C107: 562519 | D107: 0 | E107: 14489 | F107: 639308 | H107: 2025-01-22 | I107: 669188 | J107: 516391 | K107: 0 | L107: 0 | M107: 1185579
A108: 2025-02-22 | B108: 0 | C108: 1596721 | D108: 0 | E108: 14489 | F108: 1611210 | H108: 2025-02-22 | I108: 0 | J108: 274567 | K108: 0 | L108: 0 | M108: 274567
A109: 2025-03-22 | B109: 145000 | C109: 511894 | D109: 0 | E109: 0 | F109: =SUM(B109:E109) -> 656894 | H109: 2025-03-22 | I109: 169763 | J109: 619620 | K109: 0 | L109: 0 | M109: =SUM(I109:L109) -> 789383
A110: 2025-04-22 | B110: 0 | C110: 680248 | D110: 0 | E110: 0 | F110: 680248 | H110: 2025-04-22 | I110: 0 | J110: 646908 | K110: 0 | L110: 0 | M110: 646908
A114: Cross Boundary Transfers
A115: Month | B115: Volume (GJ/d) | D115: Information
A116: 2024-04-01 | B116: N/A | D116: N/A
A117: 2024-05-01 | B117: N/A | D117: N/A
A118: 2024-06-01 | B118: N/A | D118: N/A
A119: 2024-07-01 | B119: N/A | D119: N/A
A120: 2024-08-01 | B120: N/A | D120: N/A
A121: 2024-09-01 | B121: N/A | D121: N/A
A122: 2024-10-01 | B122: 25 | D122: Requested one-way FT-D2 transfer volume from NW Alberta and NE B.C. Area to Edmonton and Area was denied
A123: 2024-11-01 | B123: N/A | D123: N/A
A124: 2024-12-01 | B124: N/A | D124: N/A
A125: 2025-01-01 | B125: N/A | D125: N/A
A126: 2025-02-01 | B126: N/A | D126: N/A
A127: 2025-03-01 | B127: N/A | D127: N/A
A128: 2025-04-01 | B128: N/A | D128: N/A
A130: Notes:
A131: 1. Values represent the total volume (GJ/d) of transfer requests processed in the specified month, regardless of effective date
A132: 2. Includes all "out and back" and "one-way" transfers
A133: 3. Out and back transfer requests are tallied as a single transaction
A134: 4. Transfers to storage are not included in totals
A135: 5. Transfers that cross a Delivery Design Area boundary are tallied in the area where the "To" location is situated
A136: 6. Cancelled transfer requests are initiated by the requester (customer, marketer etc.)
A137: 7. ATP is the acronym for Automated Transfer Process, requests that meet certain criteria may be approved automatically
A138: 8. Delivery Design Area boundaries are illustrated in the Design Methodology document on Customer Express (see NGTL/Regulatory/Facilities)
A139: http://www.tccustomerexpress.com/docs/ab_regulatory_facilities/Facilities%20Design%20Methodology%20Document%20-%20Revision%20May%2031,%202018_Oct%204.pdf

Sheet Transfers to Storage
A1: Transfers to Storage - Frequency
B2: FT-R | G2: FT-D1 | L2: FT-D2
A3: Month | B3: Approved (Manual) | C3: Approved (ATP) | D3: Denied | E3: Cancelled | F3: Total | G3: Approved (Manual) | H3: Approved (ATP) | I3: Denied | J3: Cancelled | K3: Total | L3: Approved (Manual) | M3: Approved (ATP) | N3: Denied | O3: Cancelled | P3: Total
A4: 2024-04-22 | B4: 0 | C4: 0 | D4: 0 | E4: 0 | F4: =SUM(B4:E4) -> 0 | G4: 0 | H4: 0 | I4: 0 | J4: 0 | K4: =SUM(G4:J4) -> 0 | L4: 1 | M4: 0 | N4: 0 | O4: 0 | P4: =SUM(L4:O4) -> 1
A5: 2024-05-22 | B5: 0 | C5: 2 | D5: 0 | E5: 0 | F5: 2 | G5: 0 | H5: 0 | I5: 0 | J5: 0 | K5: 0 | L5: 1 | M5: 0 | N5: 0 | O5: 0 | P5: 1
A6: 2024-06-22 | B6: 0 | C6: 0 | D6: 0 | E6: 0 | F6: 0 | G6: 0 | H6: 0 | I6: 0 | J6: 0 | K6: 0 | L6: 1 | M6: 0 | N6: 0 | O6: 0 | P6: 1
A7: 2024-07-22 | B7: 9 | C7: 0 | D7: 0 | E7: 0 | F7: =SUM(B7:E7) -> 9 | G7: 0 | H7: 4 | I7: 0 | J7: 0 | K7: 4 | L7: 5 | M7: 0 | N7: 0 | O7: 0 | P7: 5
A8: 2024-08-22 | B8: 1 | C8: 0 | D8: 0 | E8: 0 | F8: =SUM(B8:E8) -> 1 | G8: 0 | H8: 0 | I8: 0 | J8: 0 | K8: 0 | L8: 1 | M8: 0 | N8: 0 | O8: 0 | P8: 1
A9: 2024-09-22 | B9: 1 | C9: 0 | D9: 0 | E9: 0 | F9: 1 | G9: 0 | H9: 0 | I9: 0 | J9: 0 | K9: 0 | L9: 1 | M9: 0 | N9: 0 | O9: 0 | P9: 1
A10: 2024-10-22 | B10: 0 | C10: 0 | D10: 0 | E10: 0 | F10: 0 | G10: 0 | H10: 0 | I10: 0 | J10: 0 | K10: 0 | L10: 0 | M10: 0 | N10: 0 | O10: 0 | P10: 0
A11: 2024-11-22 | B11: 0 | C11: 4 | D11: 0 | E11: 0 | F11: 4 | G11: 0 | H11: 0 | I11: 0 | J11: 0 | K11: 0 | L11: 0 | M11: 0 | N11: 0 | O11: 0 | P11: 0
A12: 2024-12-22 | B12: 0 | C12: 0 | D12: 0 | E12: 0 | F12: 0 | G12: 0 | H12: 0 | I12: 0 | J12: 0 | K12: 0 | L12: 0 | M12: 0 | N12: 0 | O12: 0 | P12: 0
A13: 2025-01-22 | B13: 0 | C13: 25 | D13: 0 | E13: 5 | F13: 30 | G13: 0 | H13: 0 | I13: 0 | J13: 0 | K13: 0 | L13: 0 | M13: 0 | N13: 0 | O13: 0 | P13: 0
A14: 2025-02-22 | B14: 0 | C14: 17 | D14: 0 | E14: 0 | F14: 17 | G14: 0 | H14: 0 | I14: 0 | J14: 0 | K14: 0 | L14: 0 | M14: 0 | N14: 0 | O14: 0 | P14: 0
A15: 2025-03-22 | B15: 0 | C15: 17 | D15: 0 | E15: 0 | F15: 17 | G15: 0 | H15: 0 | I15: 0 | J15: 0 | K15: 0 | L15: 0 | M15: 0 | N15: 0 | O15: 0 | P15: 0
A16: 2025-04-22 | B16: 0 | C16: 0 | D16: 0 | E16: 0 | F16: =SUM(B16:E16) -> 0 | G16: 0 | H16: 0 | I16: 0 | J16: 0 | K16: =SUM(G16:J16) -> 0 | L16: 1 | M16: 0 | N16: 0 | O16: 0 | P16: =SUM(L16:O16) -> 1
A19: Transfers to Storage - Volume
B20: FT-R (103m3/d) | G20: FT-D1 (GJ/d) | L20: FT-D2 (GJ/d)
A21: Month | B21: Approved (Manual) | C21: Approved (ATP) | D21: Denied | E21: Cancelled | F21: Total | G21: Approved (Manual) | H21: Approved (ATP) | I21: Denied | J21: Cancelled | K21: Total | L21: Approved (Manual) | M21: Approved (ATP) | N21: Denied | O21: Cancelled | P21: Total
A22: 2024-04-22 | B22: 0 | C22: 0 | D22: 0 | E22: 0 | F22: =SUM(B22:E22) -> 0 | G22: 0 | H22: 0 | I22: 0 | J22: 0 | K22: =SUM(G22:J22) -> 0 | L22: 1000 | M22: 0 | N22: 0 | O22: 0 | P22: =SUM(L22:O22) -> 1000
A23: 2024-05-22 | B23: 0 | C23: 1815 | D23: 0 | E23: 0 | F23: 1815 | G23: 0 | H23: 0 | I23: 0 | J23: 0 | K23: 0 | L23: 1000 | M23: 0 | N23: 0 | O23: 0 | P23: 1000
A24: 2024-06-22 | B24: 0 | C24: 0 | D24: 0 | E24: 0 | F24: 0 | G24: 0 | H24: 0 | I24: 0 | J24: 0 | K24: 0 | L24: 1000 | M24: 0 | N24: 0 | O24: 0 | P24: 1000
A25: 2024-07-22 | B25: =69000+15000 -> 84000 | C25: 0 | D25: 0 | E25: 0 | F25: 84000 | G25: 0 | H25: 69000 | I25: 0 | J25: 0 | K25: 69000 | L25: 15000 | M25: 0 | N25: 0 | O25: 0 | P25: 15000
A26: 2024-08-22 | B26: 1000 | C26: 0 | D26: 0 | E26: 0 | F26: 1000 | G26: 0 | H26: 0 | I26: 0 | J26: 0 | K26: 0 | L26: 1000 | M26: 0 | N26: 0 | O26: 0 | P26: 1000
A27: 2024-09-22 | B27: 1000 | C27: 0 | D27: 0 | E27: 0 | F27: 1000 | G27: 0 | H27: 0 | I27: 0 | J27: 0 | K27: 0 | L27: 1000 | M27: 0 | N27: 0 | O27: 0 | P27: 1000
A28: 2024-10-22 | B28: 0 | C28: 0 | D28: 0 | E28: 0 | F28: 0 | G28: 0 | H28: 0 | I28: 0 | J28: 0 | K28: 0 | L28: 0 | M28: 0 | N28: 0 | O28: 0 | P28: 0
A29: 2024-11-22 | B29: 0 | C29: 1055 | D29: 0 | E29: 0 | F29: 1055 | G29: 0 | H29: 0 | I29: 0 | J29: 0 | K29: 0 | L29: 0 | M29: 0 | N29: 0 | O29: 0 | P29: 0
A30: 2024-12-22 | B30: 0 | C30: 0 | D30: 0 | E30: 0 | F30: 0 | G30: 0 | H30: 0 | I30: 0 | J30: 0 | K30: 0 | L30: 0 | M30: 0 | N30: 0 | O30: 0 | P30: 0
A31: 2025-01-22 | B31: 0 | C31: 11893 | D31: 0 | E31: 631 | F31: 12524 | G31: 0 | H31: 0 | I31: 0 | J31: 0 | K31: 0 | L31: 0 | M31: 0 | N31: 0 | O31: 0 | P31: 0
A32: 2025-02-22 | B32: 0 | C32: 6318 | D32: 0 | E32: 0 | F32: 6318 | G32: 0 | H32: 0 | I32: 0 | J32: 0 | K32: 0 | L32: 0 | M32: 0 | N32: 0 | O32: 0 | P32: 0
A33: 2025-03-22 | B33: 0 | C33: 247 | D33: 0 | E33: 0 | F33: 247 | G33: 0 | H33: 0 | I33: 0 | J33: 0 | K33: 0 | L33: 16000 | M33: 0 | N33: 0 | O33: 0 | P33: 16000
A34: 2025-04-22 | B34: 0 | C34: 0 | D34: 0 | E34: 0 | F34: =SUM(B34:E34) -> 0 | G34: 0 | H34: 0 | I34: 0 | J34: 0 | K34: 0 | L34: 1000 | M34: 0 | N34: 0 | O34: 0 | P34: =SUM(L34:O34) -> 1000
A38: Cross Boundary Transfers
A39: Month | B39: Frequency | C39: Volume (e3m3/d) | D39: Information
A40: 2024-04-01 | B40: N/A | C40: N/A | D40: N/A
A41: 2024-05-01 | B41: N/A | C41: N/A | D41: N/A
A42: 2024-06-01 | B42: N/A | C42: N/A | D42: N/A
A43: 2024-07-01 | B43: N/A | C43: N/A | D43: N/A
A44: 2024-08-01 | B44: N/A | C44: N/A | D44: N/A
A45: 2024-09-01 | B45: N/A | C45: N/A | D45: N/A
A46: 2024-10-01 | B46: N/A | C46: N/A | D46: N/A
A47: 2024-11-01 | B47: N/A | C47: N/A | D47: N/A
A48: 2024-12-01 | B48: N/A | C48: N/A | D48: N/A
A49: 2025-01-01 | B49: N/A | C49: N/A | D49: N/A
A50: 2025-02-01 | B50: N/A | C50: N/A | D50: N/A
A51: 2025-03-01 | B51: N/A | C51: N/A | D51: N/A
A52: 2025-04-01 | B52: N/A | C52: N/A | D52: N/A
A54: Notes:
A55: 1. Values represent the total volume (GJ/d) of transfer requests processed in the specified month, regardless of effective date
A56: 2. Includes all "out and back" and "one-way" transfers
A57: 3. Out and back transfer requests are tallied as a single transaction
A58: 4. Transfers that cross a Delivery Design Area boundary are tallied in the area where the "To" location is situated
A59: 5. Cancelled transfer requests are initiated by the requester (customer, marketer etc.)
A60: 6. ATP is the acronym for Automated Transfer Process, requests that meet certain criteria may be approved automatically
A61: 7. Delivery Design Area boundaries are illustrated in the Design Methodology document on Customer Express (see NGTL/Regulatory/Facilities)
A62: http://www.tccustomerexpress.com/docs/ab_regulatory_facilities/Facilities%20Design%20Methodology%20Document%20-%20Revision%20May%2031,%202018_Oct%204.pdf
P73: 6
